{"text_format":"1","workbook":"xlsx","n_sheets":22,"sheets":["Cover Page","Contents","Facility Info","Operational Data","Operational Summary","Perf. Form 1","Energy Form 1","Permit Compliance","Improvements","Public Liasion","Residue Quality ","Water","Air (periodic)","Air (CEMS)","HCl","SO2","NOx","TOC","Particulates","CO 0.5hourly","CO 95% 10 min","NH3"],"not_rendered":{"charts":8,"images":2,"macros":1,"external_links":0,"defined_names":23,"comments":0,"pivot_tables":0},"unopened":[],"bounds":{"document_bytes":16777216,"sheet_cells":100000,"rows_first":2000,"rows_last":500,"rows_between":2000,"halvings":0,"cell_chars":16384,"cell_head_chars":4096},"cells_cut":0,"cells_raw":0,"read":"whole","date_system":"1900"}

{"sheet":"Cover Page","index":0,"n_rows":53,"n_cols":14,"rows_kept":53,"cut":false,"hidden":false,"merged":[[48,2,48,3],[48,6,48,8],[52,2,52,3],[36,1,36,8],[40,2,40,8],[42,2,42,4],[44,2,44,4],[46,2,46,3],[46,6,46,8],[13,13,18,15],[34,1,34,8],[0,3,5,6],[7,1,23,8],[28,1,28,8],[30,1,30,8],[32,1,32,8]]}
[null,null,null,"Add company logo"]
[null,null,null,null,null,null,null,null,null,null,null,null,null,"Version 20.1 "]
[]
[]
[]
[]
[]
[null,"Add photo"]
[]
[]
[]
[]
[null,null,null,null,null,null,null,null,null,null,null,null,null,"Notes:"]
[null,null,null,null,null,null,null,null,null,null,null,null,null,"This template may require adjustments by individual operators to meet specific reporting requirements as defined in the site Permit(s)"]
[]
[]
[]
[]
[]
[]
[]
[]
[]
[]
[]
[]
[]
[]
[null,"Annual Performance Report 2020"]
[]
[null,"Permit EPR/JP3135DK"]
[]
[null,"Kemsley Generating Station"]
[]
[null,"K3 CHP"]
[]
[null,"K3 CHP Operations Limited"]
[]
[null,"Year:",2020]
[]
[null,"Address:","Barge Way,  Sittingbourne, Kent, ME10 2FP"]
[]
[null,"Tel: ","01795 685740"]
[]
[null,"Email: ","www.wtikemsley.co.uk"]
[]
[null,"Prepared by:","Michelle Dunbar",null,null,"Position:","Compliance Manager"]
[]
[null,"Approved by:","Stuart Kirk",null,null,"Position:","Plant Manager"]
[]
[null,"Version:",1]
[]
[null,"Issue Date:","29.01.2021"]

{"sheet":"Contents","index":1,"n_rows":44,"n_cols":11,"rows_kept":44,"cut":false,"hidden":false,"merged":[[43,0,46,9],[36,1,36,6],[37,1,37,6],[38,1,38,6],[39,1,39,6],[40,1,40,6],[41,1,41,6],[35,1,35,6],[21,1,21,6],[23,1,23,6],[26,1,26,6],[27,1,27,6],[28,1,28,6],[29,1,29,6],[30,1,30,6],[31,1,31,6],[34,1,34,6],[22,1,22,6],[20,1,20,6],[9,1,9,6],[10,1,10,6],[11,1,11,6],[12,1,12,6],[13,1,13,6],[14,1,14,6],[15,1,15,6],[16,1,16,6],[17,1,17,6],[18,1,18,6],[19,1,19,6],[4,10,7,14],[8,1,8,6],[3,1,3,6],[4,1,4,6],[5,1,5,6],[6,1,6,6],[7,1,7,6]]}
[{"$f":"+'Cover Page'!$B$29","v":"Annual Performance Report 2020"},null,null,null,{"$f":"+'Cover Page'!$B$33","v":"Kemsley Generating Station"}]
[]
["Contents",null,null,null,null,null,null,null,null,null,"Notes:"]
["Section","Subject",null,null,null,null,null,"Page ",null,null,"Section references and Page nos. to be inserted"]
[null,"Facility Information",null,null,null,null,null,3,null,null,"Sections and Subjects may require adjustment by individual operators to meet specific reporting requirements as defined in the sites Permit(s)"]
[null,"Operational Data",null,null,null,null,null,4]
[null,"Operational Summary",null,null,null,null,null,6]
[null,"Performance Form 1",null,null,null,null,null,7]
[null,"Energy Form 1",null,null,null,null,null,8]
[null,"Permit Compliance",null,null,null,null,null,9]
[null,"Improvements",null,null,null,null,null,10]
[null,"Public Liasion",null,null,null,null,null,11]
[null,"Residue Quality - Optional",null,null,null,null,null,12]
[null,"Emissions to Water",null,null,null,null,null,13]
[null,"Emissions to Air (periodically monitored)",null,null,null,null,null,14]
[null,"Emissions to Air (continuously monitored)",null,null,null,null,null,15]
[null,"Hydrogen Chloride emissions",null,null,null,null,null,16]
[null,"Sulphur Dioxdie emsissions",null,null,null,null,null,17]
[null,"Oxides of Notrigen emissions",null,null,null,null,null,18]
[null,"Total Organic Carbon emissions",null,null,null,null,null,19]
[null,"Particulate Matter emissions",null,null,null,null,null,20]
[null,"Carbon Monoxide emissions - half hour average",null,null,null,null,null,21]
[null,"Carbon Monoxide emissions - 10 minute average",null,null,null,null,null,22]
[null,"Ammonia emissions",null,null,null,null,null,23]
[]
["Version Control"]
["Section","Information",null,null,null,null,null,"Date"]
[]
[]
[]
[]
[]
[]
["Distribution"]
["Copy","Name, Role",null,null,null,null,null,"No."]
[]
[]
[]
[]
[]
[]
[]
[]
["This report is required under the Industrial Emissions Directive’s Article 55(2) requirements on reporting and public information on waste incineration plants and co-incineration plants, which require the operator to produce an annual report on the functioning and monitoring of the plant and make it available to the public. "]

{"sheet":"Facility Info","index":2,"n_rows":22,"n_cols":11,"rows_kept":22,"cut":false,"hidden":false,"merged":[[4,0,17,8],[21,0,53,8],[4,10,13,13],[21,10,30,13]]}
[{"$f":"+'Cover Page'!$B$29","v":"Annual Performance Report 2020"},null,null,null,{"$f":"+'Cover Page'!$B$33","v":"Kemsley Generating Station"}]
[]
["Plant Description and Design",null,null,null,null,null,null,null,null,null,"Notes:"]
[]
["The Kemsley Energy Recovery Facility (ERF) recovers value (primarily in the form of energy, but also recycled materials in the form of incinerator bottom ash aggregate (IBAA) and metals recovered from the incinerator bottom ash (IBA) from up to 657,000 tonnes per annum (tpa) residual waste  in two incineration lines.  The imported waste is primarily commercial and industrial (C&I) waste and residual Municipal Solid Waste (MSW), collected by private waste management companies. \nThe Installation forms part of the Kemsley Paper Mill installation which currently comprises the DS Smith Kemsley Paper Mill and the E.On combined heat and power facility. It is located at grid reference 592170,166640 which is to the east of Kemsley, 3 km north of Sittingbourne and 2.5 km south east of Iwade.\nPlanning permission for the site was granted in 2012 and construction of the facility has been completed. Some landscaping works remain, along with correction of various minor snags and defects.\nThe existing permit (Permit number EPR/JP3135DK) allows the facility to accept municipal, industrial and commercial waste and undertake the following activities:\n•\treceipt and storage of waste pending processing;\n•\telectricity and steam generation; and\n•\tdisposal of waste arising (incinerator bottom ash (IBA) and air pollution control residues (APCr)).\n\n",null,null,null,null,null,null,null,null,null,"Include summary of plant design, design capacity, no. of combustion lines, electrical and heat capacity and any other general information that descibes the facility, its location and purpose "]
[]
[]
[]
[]
[]
[]
[]
[]
[]
[]
[]
[]
[]
[]
["Summary of Operational Processes and Procedures"]
[]
["The facility processes waste using air cooled, moving grate technology. The energy recovered from the combustion of waste is utilised (in the form of high-pressure steam) to produce electrical power through a steam turbine and generator unit. \nThe facility has combined heat and power (CHP) capability and supplies the adjacent DS Smith paper mill with steam. \nThe combustion of waste releases flue gases which are treated in order to comply with the requirements of the Industrial Emissions Directive and the permit. In addition to primary and secondary air injection, additional support in combustion is provided through tertiary air injection or flue gas recirculation.\nUrea is added at various stages of the boiler’s combustion chamber (first pass) to reduce nitrogen oxides (NOx). Hydrated Lime and powdered activated carbon (PAC) are used within the dry flue gas treatment (FGT) system. \nThe lime reduces acid gas emissions while the activated carbon reduces mercury and the formation of dioxins/furans. The by-products from both reactions are captured in the fabric filter as Air Pollution Control Residues (APCR). \nThe facility is designed to export approximately 45MW of electricity to the grid, and 55 MWth of steam to the mill - when the paper mill is running at capacity.  ",null,null,null,null,null,null,null,null,null,"Include summary of key processes and procedures such as (but not limited to); waste reception, control rooms, grate, bed and bolier, energy & heat  generation, cooling systems, residue management, emission controls, health and safety systems, maintenance"]

{"sheet":"Operational Data","index":3,"n_rows":66,"n_cols":15,"rows_kept":66,"cut":false,"hidden":false,"merged":[[5,10,6,10],[7,10,18,10],[34,1,39,1],[31,2,31,5],[31,6,31,7],[3,1,3,2],[7,1,20,1],[24,1,27,1],[29,1,30,1],[53,0,57,0]]}
[{"$f":"+'Cover Page'!$B$29","v":"Annual Performance Report 2020"},null,null,null,{"$f":"+'Cover Page'!$B$33","v":"Kemsley Generating Station"}]
[]
["Operational Data",null,null,null,null,null,null,null,null,null,"Notes:"]
["Plant Size",657000,null,"tonnes pa",55,"MWth",45,"MWe",null,null,"* - RDF to include SRF "]
["No. of combustion lines",2,null,"No. of Turbines:",null,1,null,null,null,null,"** - CHP plants only"]
[null,null,null,null,null,null,null,null,null,null,"2020 updates include;  heat in MWh, water in Litres, NCV in MJ/kg"]
["Waste types received","Unit","Q1","Q2","Q3","Q4","Year Total","%"]
["Household / Local Authority","tonnes",3142.74,56945,54731.22,63470.66,{"$f":"SUM(C8:F8)","v":178289.62},{"$f":"IF(G8>0,G8/$G$18,\"-\")","v":0.42529456822371309},null,null,"Availabiity Definition: 'the availability of a line is to be calculated by the number of hours the line reported Continuously Monitored emission levels to the Regulator through the calendar year divided by the total number of hours in that year. \nThe overall plant availability is calculated as the Mean of all lines in the plant. For clarity this includes periods of Other Than Normal Operating Conditions (OTNOC) and abnormal operation.'  \n\nRationale: The primary function of an Energy from Waste facility is the disposal of waste. It follows therefore that the availability of a plant is determined by the period of time a facility spends undertaking this activity."]
["Commercial & Industrial ",null,7045.75,39442,76580,65863.02,{"$f":"SUM(C9:F9)","v":188930.77000000002},0.45067811716309486]
["Hazardous ",null,null,null,null,null,0,"-"]
["Clinical",null,null,null,null,null,0,"-"]
["Waste wood (biomass) ",null,null,null,null,null,0,"-"]
["Refuse Derived Fuel * - H'hold/LA",null,null,null,null,null,{"$f":"SUM(C13:F13)","v":0},"-"]
["Refuse Derived Fuel *  - C&I",null,1834.9,14478,15437.62,20241.82,51992.34,0.12402325940927177]
["Other [Please specify]",null,null,null,null,null,0,"-"]
["Other [Please specify]"]
["Other [Please specify]"]
["Total waste received",null,{"$f":"SUM(C8:C17)","v":12023.39},110866.7,{"$f":"SUM(E8:E17)","v":146748.84},{"$f":"SUM(F8:F17)","v":149575.5},{"$f":"SUM(C18:F18)","v":419214.43},{"$f":"IF(G18>0,G18/$G$18,\"-\")","v":1}]
["Rejected Waste ",null,35.340000000000003,65.52,3.66,38.76,{"$f":"SUM(C19:F19)","v":143.28},{"$f":"IF(G19>0,G19/$G$18,\"-\")","v":3.4178212806271961E-4}]
["Unprocessed waste transferred out"]
["Total waste combusted",null,10775,106819.6,135657.10999999999,157203.34033569336,{"$f":"SUM(C21:F21)","v":410455.05033569335},{"$f":"IF(G21>0,G21/$G$21,\"-\")","v":1}]
["Total waste combusted - Q3 and Q4",null,null,null,null,null,{"$f":"SUM(E21:F21)","v":292860.45033569331}]
[]
["Energy Useage / Export","Unit","Q1","Q2","Q3","Q4","Year Total","KWh/te"]
["Power Generated","MWh",null,null,99019.48,112855.16459939911,{"$f":"SUM(C25:F25)","v":211874.64459939912},{"$f":"IF(G25>0,G25*1000/$G$22,\"-\")","v":723.46622548908988}]
["Power Exported",null,null,null,87438,100733,{"$f":"SUM(C26:F26)","v":188171},{"$f":"IF(G26>0,G26*1000/$G$22,\"-\")","v":642.52786535125415}]
["Power Used on site",null,null,null,null,null,{"$f":"SUM(C27:F27)","v":0},{"$f":"IF(G27>0,G27*1000/$G$22,\"-\")","v":"-"}]
["Power Imported",null,null,null,668,99,767,{"$f":"IF(G28>0,G28*1000/$G$22,\"-\")","v":2.6189948117638315}]
["Parasitic Load","%",{"$f":"IF(C25>0,1-C26/(C25+C28),\"-\")","v":"-"},{"$f":"IF(D25>0,1-D26/(D25+D28),\"-\")","v":"-"},{"$f":"IF(E25>0,1-E26/(E25+E28),\"-\")","v":0.12287882089104862},{"$f":"IF(F25>0,1-F26/(F25+F28),\"-\")","v":0.10819578581048728},{"$f":"IF(G25>0,1-G26/(G25+G28),\"-\")","v":0.11507926702457549}]
["Thermal Energy Produced **","MWh",null,null,431028.06350127776,467241,{"$f":"SUM(C30:F30)","v":898269.06350127771},{"$f":"IF(G30>0,G30*1000/$G$22,\"-\")","v":3067.2255761118668}]
["Thermal Energy Exported **",null,null,null,43425.99,79243,122668.98999999999,{"$f":"IF(G31>0,G31*1000/$G$22,\"-\")","v":418.86499136155055}]
["R1 value",null,null,null,null,null,"Design / Operational / n/a"]
[]
["Waste Disposal & Recovery","Unit","Q1","Q2","Q3","Q4","Year Total","% inputs"]
["APC Residues - produced","tonnes",227.72,3484.82,4218.68,4516,{"$f":"SUM(C35:F35)","v":12447.220000000001},{"$f":"IF(G35>0,G35/$G$21,\"-\")","v":3.0325415632771385E-2}]
["IBA - produced",null,2057.06,25760.959999999999,32908.06,32906.29,93632.37,{"$f":"IF(G36>0,G36/$G$21,\"-\")","v":0.22811845029905747}]
["Metals recycling",null,null,311.82,410.86,276.23,{"$f":"SUM(C37:F37)","v":998.91000000000008},{"$f":"IF(G37>0,G37/$G$21,\"-\")","v":2.4336647805479187E-3}]
["Water - 16 10 02",null,3528.9,4025,735,687,{"$f":"SUM(C38:F38)","v":8975.9},{"$f":"IF(G38>0,G38/$G$21,\"-\")","v":2.1868168006847526E-2}]
["13 05 08",null,12,0,0,0,12,{"$f":"IF(G39>0,G39/$G$21,\"-\")","v":2.9235844437011364E-5}]
["Other",null,0,0,0,0,0,{"$f":"IF(G40>0,G40/$G$18,\"-\")","v":"-"}]
[]
["Raw Material Usage","Unit","Q1","Q2","Q3","Q4","Year Total","kg or Ltr /te"]
["Mains Water","ltrs",null,null,7635,4502,{"$f":"SUM(C43:F43)","v":12137},{"$f":"IF(G43>0,G43/$G$21,\"-\")","v":2.9569620327667245E-2}]
["Other Water","ltrs",null,null,null,null,0,{"$f":"IF(G44>0,G44/$G$18,\"-\")","v":"-"}]
["Ammonia","kgs",null,null,null,null,0,{"$f":"IF(G45>0,G45/$G$18,\"-\")","v":"-"}]
["Urea","kgs",null,null,169977,160154.66345808984,{"$f":"SUM(C46:F46)","v":330131.66345808981},{"$f":"IF(G46>0,G46/$G$22,\"-\")","v":1.1272661196814868}]
["Activated Carbon","kgs",null,null,43118,50551,93669,{"$f":"IF(G47>0,G47/$G$22,\"-\")","v":0.31984175361552325}]
["Lime / hydrated lime","kgs",null,null,2111,2188.9050000000002,4299.9050000000007,{"$f":"IF(G48>0,G48/$G$22,\"-\")","v":1.4682436618093037E-2}]
["Fuel oil","ltrs",null,null,524357,164629.9,688986.9,{"$f":"IF(G49>0,G49/$G$22,\"-\")","v":2.3526116251280911},null,null,null,null,null,"Oct",10573]
["Gas","cf",0,0,0,0,0,null,null,null,null,null,null,"Nov",10964]
["Other",null,0,0,0,0,0,null,null,null,null,null,null,"Dec",10569]
[null,null,null,null,null,null,null,null,null,null,null,null,null,null,{"$f":"AVERAGE(O49:O51)","v":10702}]
["Summary ","Line/Unit","Q1","Q2","Q3","Q4","Year Total",null,null,"Hrs in year *"]
["Availability of waste combustion by line, hrs",1,null,null,1693,2199,{"$f":"SUM(C54:F54)","v":3892},{"$f":"G54/J54","v":0.95956607495069035},null,4056]
[null,2,null,null,1752,2174,3926,{"$f":"G55/J54","v":0.96794871794871795},null,null,null,null,null,"jul",11997]
[null,3,null,null,null,null,0,"x %",null,null,null,null,null,"aug",10202]
[null,4,null,null,null,null,0,"x %",null,"*From July 2020, post takeover",null,null,null,"sept",10150]
[null,5,null,null,null,null,{"$f":"SUM(C58:F58)","v":0},"x %",null,null,null,null,null,null,{"$f":"AVERAGE(O55:O57)","v":10783}]
["Overall Availability, mean avg. of all lines, hrs",null,null,null,null,null,{"$f":"AVERAGE(G54:G55)","v":3909},{"$f":"G59/J54","v":0.96375739644970415}]
["Hours of turbine operations, hrs",1,null,null,1688,2190,3878,{"$f":"G60/J54","v":0.95611439842209078},null,null,null,null,null,"apr"]
["Hours of turbine operations, hrs",2,null,null,null,null,0,"x %",null,null,null,null,null,"may"]
["Hours of heat / steam export",null,null,null,1816,2195,4011,{"$f":"IF(B62>0,G61/J54,\"n/a\")","v":"n/a"},null,null,null,null,null,"jun",11217]
["Net Calorific Value of waste","MJ/kg","4056 (hours in year - Q3 and Q4)",null,10783,10702,null,"-"]
["Abnormal Events","qty.",0,0,0,0,0,{"$f":"IF(G64>0,\"yes\",\"no\")","v":"no"}]
["Abnormal operation","hours",0,0,0,0,0,{"$f":"+(G65)/J54","v":0}]
["Permit (ELV) Breaches","qty.",1,5,3,null,9,{"$f":"IF(G66>0,\"yes\",\"no\")","v":"yes"}]

{"sheet":"Operational Summary","index":4,"n_rows":22,"n_cols":11,"rows_kept":22,"cut":false,"hidden":false,"merged":[[21,0,42,8],[4,10,5,13],[21,10,30,13],[4,0,4,8]]}
[{"$f":"+'Cover Page'!$B$29","v":"Annual Performance Report 2020"},null,null,null,{"$f":"+'Cover Page'!$B$33","v":"Kemsley Generating Station"}]
[]
["Summary of Plant Operations and Maintenance during the reporting year",null,null,null,null,null,null,null,null,null,"Notes:"]
[]
["Following commercial operations of the facility in July 2020 there have been no major maintenance or Operational activities other than completing legacy defects and new warranty items, within the two year warranty period and optimising the process as per design specification.\n\nDetailed PPM (planned preventative maintenance) activities have been produced and managed within the companies CMMS (Computerised Maintenance management System), which comply with the original equipment manufacturers recommendations for preventative maintenance. This will ensure the plant is operated at high levels of availability and within environmental limits.\n\nOperational routines have been developed to ensure safe and Environmentally compliant operation of the facility that include, but not limited to: Fire detection and suppression systems, receipt of consumable materials for the abatement and treatment of process effluent and gasses, safe start-up and shut-down of the boiler plants, emergency response plans and Environmental compliance training. \n\nA management of change process has been established since commercial operation that evaluates and manages upgrades to the facilities installed equipment. One such project relating to the Continuous Emissions Measurement System (CEMS)  commenced the concept phase in 2020 and will be completed in Q2 2021 . When complete, the installation of a fourth CEM unit will enable Wheelabrator Kemsley to have 100% redundancy on the CEMS for both boiler plants. ",null,null,null,null,null,null,null,null,null,"Include summary of key operational and/or maintenance activity undertaken in the year, such as any major component upgrades and/or replacements "]
[]
[]
[]
[]
[]
[]
[]
[]
[]
[]
[]
[]
[]
[]
["Summary of Residue Handling for the reporting year"]
[]
["APCr is transferred to Augean (Peterborough) where it is treated and landfilled.  WTI continue to investigate opportunities for recycling of this material.\n\nIBA is transferred to Fortis IBA (Andover), where it is recycled.  Metals are removed and IBAA is produced for use in construction.\n\nThe IBA is sampled and analysis undertaken twice monthly to assess its suitability for reporocessing at Fortis.  Core hazard properties are assessed, and monthly samples are analyseed as per compliance requirements of the permit.\nAPCR samples are also taken monthly in line with permit compliance requirements.\nIBA has consistently proven to be non-hazardous, with no failures during 2020.",null,null,null,null,null,null,null,null,null,"Include in here a summary of residue handling regimes and destinations "]

{"sheet":"Perf. Form 1","index":5,"n_rows":54,"n_cols":10,"rows_kept":54,"cut":false,"hidden":false,"merged":[[47,0,47,1],[49,0,49,9],[50,0,51,9],[38,0,38,9],[39,0,40,9],[43,0,43,1],[43,2,43,9],[45,0,45,1],[46,0,46,1],[36,0,36,3],[36,4,36,5],[36,7,36,8],[37,0,37,3],[37,4,37,5],[37,7,37,8],[34,0,34,3],[34,4,34,5],[34,7,34,8],[35,0,35,3],[35,4,35,5],[35,7,35,8],[31,0,31,3],[31,7,31,8],[32,0,32,3],[32,4,32,5],[32,7,32,8],[33,0,33,3],[33,4,33,5],[33,7,33,8],[23,0,23,3],[23,4,23,5],[23,6,23,7],[23,8,23,9],[25,0,25,9],[26,0,28,9],[21,0,21,1],[21,2,21,3],[21,4,21,5],[21,6,21,7],[21,8,21,9],[22,0,22,3],[22,4,22,5],[22,6,22,7],[22,8,22,9],[19,0,19,1],[18,2,18,3],[19,4,19,5],[19,6,19,7],[19,8,19,9],[20,0,20,1],[20,2,20,3],[20,4,20,5],[20,6,20,7],[20,8,20,9],[19,2,19,3],[17,0,17,1],[17,2,17,3],[17,4,17,5],[17,6,17,7],[17,8,17,9],[18,0,18,1],[18,4,18,5],[18,6,18,7],[18,8,18,9],[15,0,15,1],[15,2,15,3],[15,4,15,5],[15,6,15,7],[15,8,15,9],[16,0,16,9],[13,0,13,1],[13,2,13,3],[13,4,13,5],[13,6,13,7],[13,8,13,9],[14,0,14,3],[14,4,14,5],[14,6,14,7],[14,8,14,9],[11,0,11,1],[11,2,11,3],[11,4,11,5],[11,6,11,7],[11,8,11,9],[12,0,12,1],[12,2,12,3],[12,4,12,5],[12,6,12,7],[12,8,12,9],[9,0,9,9],[10,0,10,1],[10,2,10,3],[10,4,10,5],[10,6,10,7],[10,8,10,9],[2,0,2,4],[2,6,2,8],[3,1,3,4],[5,3,5,4],[5,6,5,7],[8,0,8,1],[8,2,8,3],[8,4,8,5],[8,6,8,7],[8,8,8,9]]}
[{"$f":"+'Cover Page'!C39","v":2020}," Annual Reporting Performance Form 1"]
[]
[{"$f":"+'Cover Page'!B31","v":"Permit EPR/JP3135DK"},null,null,null,null,"Operator: ",{"$f":"+'Cover Page'!B37:I37","v":0}]
["Facility:",{"$f":"+'Cover Page'!B33:I33","v":"Kemsley Generating Station"},null,null,null,"Form:","Performance 1"]
[]
["Reporting  Period from: ",null,null,"March*",null,"to:","December"]
[]
[{"$f":"+A1","v":2020},"Annual Reporting of Waste Disposal and Recovery"]
["Waste Description",null,"Disposal Route(s)",null,"Disposal Tonnes",null,"Recovery Tonnes",null,"% / tonne of waste incinerated"]
["1) Hazardous Wastes"]
["APC Residues",null,"D09",null,12447.220000000001,null,0,null,{"$f":"IF((E11+G11)>0,(E11+G11)/'Operational Data'!$G$21, \"-\")","v":3.0325415632771385E-2}]
["IBA",null,null,null,0,null,0,null,0]
[null,null,null,null,null,null,null,null,{"$f":"IF((E13+G13)>0,(E13+G13)/'Operational Data'!$G$21, \"-\")","v":"-"}]
[null,null,null,null,null,null,null,null,{"$f":"IF((E14+G14)>0,(E14+G14)/'Operational Data'!$G$21, \"-\")","v":"-"}]
["Total Hazardous Waste",null,null,null,{"$f":"SUM(E11:F14)","v":12447.220000000001},null,{"$f":"SUM(G11:H14)","v":0},null,{"$f":"IF((E15+G15)>0,(E15+G15)/'Operational Data'!$G$21, \"-\")","v":3.0325415632771385E-2}]
[]
["2) Non-Hazardous Wastes"]
["IBA",null,"R5",null,null,null,93632.37,null,{"$f":"IF((E18+G18)>0,(E18+G18)/'Operational Data'!$G$21, \"-\")","v":0.22811845029905747}]
["Ferrous Metal",null,"R4",null,null,null,999,null,{"$f":"IF((E19+G19)>0,(E19+G19)/'Operational Data'!$G$21, \"-\")","v":2.4338840493811961E-3}]
["Process Water",null,"D06",null,null,null,8975.9,null,{"$f":"IF((E20+G20)>0,(E20+G20)/'Operational Data'!$G$21, \"-\")","v":2.1868168006847526E-2}]
[null,null,null,null,null,null,null,null,{"$f":"IF((E21+G21)>0,(E21+G21)/'Operational Data'!$G$21, \"-\")","v":"-"}]
[null,null,null,null,null,null,null,null,{"$f":"IF((E22+G22)>0,(E22+G22)/'Operational Data'!$G$21, \"-\")","v":"-"}]
["Total Non-Hazardous Waste",null,null,null,{"$f":"SUM(E18:F22)","v":0},null,{"$f":"SUM(G18:H22)","v":103607.26999999999},null,{"$f":"IF((E23+G23)>0,(E23+G23)/'Operational Data'!$G$21, \"-\")","v":0.25242050235528618}]
["TOTAL WASTE",null,null,null,{"$f":"+E23+E15","v":12447.220000000001},null,{"$f":"+G23+G15","v":103607.26999999999},null,{"$f":"IF((E24+G24)>0,(E24+G24)/'Operational Data'!$G$21, \"-\")","v":0.28274591798805754}]
[]
["Operator’s comments :"]
["Calculations include all waste from start of commissioning on waste on 12 March 2020"]
[]
[]
[]
[{"$f":"+A1","v":2020},"Annual Reporting of Water and Other Raw Material Usage"]
["Raw Material",null,null,null,"Usage",null,"Unit","Specific Useage",null,"Unit"]
["Mains Water",null,null,null,{"$f":"+'Operational Data'!G43","v":12137},null,"m3",{"$f":"IF(E33>0,E33/'Operational Data'!$G$22,\"-\")","v":4.1442946584586207E-2},null,"m3/te"]
["Total Water",null,null,null,{"$f":"+'Operational Data'!G44+'Operational Data'!G43","v":12137},null,"m3",{"$f":"IF(E34>0,E34/'Operational Data'!$G$22,\"-\")","v":4.1442946584586207E-2},null,"m3/te"]
["Urea / Ammonia",null,null,null,{"$f":"+'Operational Data'!G46","v":330131.66345808981},null,"kg",{"$f":"IF(E35>0,E35/'Operational Data'!$G$22,\"-\")","v":1.1272661196814868},null,"kg/te"]
["Activated Carbon",null,null,null,{"$f":"+'Operational Data'!G47","v":93669},null,"kg",{"$f":"IF(E36>0,E36/'Operational Data'!$G$22,\"-\")","v":0.31984175361552325},null,"kg/te"]
["Lime / hydrated lime / Sodium Bicarb.",null,null,null,{"$f":"+'Operational Data'!G48","v":4299.9050000000007},null,"kg",{"$f":"IF(E37>0,E37/'Operational Data'!$G$22,\"-\")","v":1.4682436618093037E-2},null,"kg/te"]
[]
["Operator’s comments : "]
["The raw material specific usage has been calculated using data from Q3 and Q4 so as to provide representative figures (as handover was on the 16th July 2020).\nSimilarly for operating hours - the hours are taken from Q3 and Q4."]
[]
[]
[{"$f":"+A31","v":2020},"Annual Reporting of other performance indicators "]
["Parameter",null,"Results by Line"]
[null,null,"A1","A2","A3","A4","A5",null,"Turbine 1","Turbine 2"]
["Operating hours for the year, hours",null,3892,3926,null,null,null,null,3878]
["Number of periods of abnormal operation, qty.",null,0,0]
["Cumulative hours of abnormal operation for this year, hours",null,0,0]
[]
["Operator’s comments :"]
["*The raw material specific usage has been calculated using data from Q3 and Q4 so as to provide represntative figures (as handover was on the 16th July 2020).\nSimilarly for operating hours - the hours are taken from Q3 and Q4.\nAlso ref. Operational data - the figures used are Q3 and Q4, hours in year are for these two quarters - used to calculate availability."]
[]
[]
["Signed: ",null,null,null,null,null,"Date:"]

{"sheet":"Energy Form 1","index":6,"n_rows":29,"n_cols":7,"rows_kept":29,"cut":false,"hidden":false,"merged":[[15,0,15,2],[15,3,15,4],[15,6,15,8],[17,0,17,8],[18,0,24,8],[13,0,13,2],[13,3,13,4],[13,6,13,8],[14,0,14,2],[14,3,14,4],[14,6,14,8],[11,0,11,2],[11,3,11,4],[11,6,11,8],[12,0,12,2],[12,3,12,4],[12,6,12,8],[9,0,9,2],[9,3,9,4],[9,6,9,8],[10,0,10,2],[10,3,10,4],[10,6,10,8],[2,6,2,8],[4,1,4,4],[6,3,6,4],[6,6,6,7],[8,0,8,2],[8,3,8,4],[8,6,8,8]]}
[{"$f":"+'Cover Page'!C39","v":2020}," Annual Reporting of Energy Usage/Export"]
[]
[{"$f":"+'Cover Page'!B31","v":"Permit EPR/JP3135DK"},null,null,null,null,"Operator: ",{"$f":"+'Cover Page'!B37:I37","v":0}]
[]
["Facility:",{"$f":"+'Cover Page'!B33:I33","v":"Kemsley Generating Station"},null,null,null,"Form:","Energy 1"]
[]
["Reporting  Period from: ",null,null,{"$f":"+'Perf. Form 1'!D6:E6","v":"March*"},null,"to:",{"$f":"+'Perf. Form 1'!G6:H6","v":"December"}]
[]
["Energy Source",null,null,"Energy Usage",null,"Unit","Specific Useage (KWh/tonne incinerated"]
["Electricity Produced",null,null,{"$f":"+'Operational Data'!G25","v":211874.64459939912},null,"MWh",{"$f":"+'Operational Data'!H25","v":723.46622548908988}]
["Electricity Imported   ",null,null,{"$f":"+'Operational Data'!G28","v":767},null,"MWh",{"$f":"+'Operational Data'!H28","v":2.6189948117638315}]
["Electricity Exported",null,null,{"$f":"+'Operational Data'!G26","v":188171},null,"MWh",{"$f":"+'Operational Data'!H26","v":642.52786535125415}]
["Gas Oil",null,null,{"$f":"'Operational Data'!G49*0.82/1000","v":564.96925800000008},null,"tonnes"]
["Steam/hot water exported",null,null,{"$f":"+'Operational Data'!G31","v":122668.98999999999},null,"GWh",{"$f":"+'Operational Data'!H31","v":418.86499136155055}]
[]
[]
[]
["Operator’s comments :"]
["*Data included is from Q3 and Q4, due to commissioning having been carried out prior to this.  The data reported is representative of 'normal' operation of the facility.  Data from Q2 has been submitted to the Agency and is available on request."]
[]
[]
[]
[]
[]
[]
[]
[]
[]
["Signed: ",null,null,null,null,null,"Date:"]

{"sheet":"Permit Compliance","index":7,"n_rows":45,"n_cols":7,"rows_kept":45,"cut":false,"hidden":false,"merged":[[38,3,38,4],[39,3,39,4],[7,0,7,1],[7,2,7,3],[8,0,8,1],[14,0,14,1],[15,0,15,1],[8,6,17,9],[44,2,44,3],[9,0,9,1],[10,0,10,1],[11,0,11,1],[12,0,12,1],[13,0,13,1],[16,0,16,1],[19,3,19,4],[20,3,20,4],[21,3,21,4],[43,3,43,4],[40,3,40,4],[41,3,41,4],[18,0,18,5],[42,3,42,4],[37,0,37,2],[29,3,29,4],[34,3,34,4],[23,3,23,4],[24,3,24,4],[32,3,32,4],[33,3,33,4]]}
[{"$f":"+'Cover Page'!$B$29","v":"Annual Performance Report 2020"},null,{"$f":"+'Cover Page'!$B$33","v":"Kemsley Generating Station"}]
[]
["Summary of Permit Compliance"]
[]
["Compliance with permit limits for continuously monitored pollutants"]
[]
["The plant met its emission limits as shown in the table below:"]
["Substance",null,"% time compliant during operation",null,null,null,"Notes:"]
[null,null,"Half-hourly","Daily",null,null,"Report to 2 decimal places, i.e. xx.xx%\n\nPlease provide a brief summary of each notification or non-compliance in the table (rather than just referring to notifications that were sent to the Regulator).  \n\n"]
["Particulates",null,1,1]
["Oxides of nitrogen",null,1,1]
["Sulphur dioxide",null,1,1]
["Carbon monoxide",null,0.99939999999999996,1]
["Total organic carbon",null,1,1]
["Hydrogen chloride",null,1,1]
["Hydrogen fluoride",null,1,1]
[]
[]
["Summary of any notifications or non-compliances under the permit"]
["Date","Summary of notification or non-compliance [including Line/Reference]","Reason ","Measures taken to prevent reoccurrence"]
["25.03.2020","ELV breach","L1 CO half hour average 15h00-15h30, 896.97mgNm3","Occurred during commissioining"]
["05.06.2020","TOC Data loss","6 hours TOC data lost 2h00 - 08h00","Re-training of EPC contractor staff"]
["15.06.2020","ELV breach","L1 CO half hour average 0800-0829, 220.88mgNm3","Mixing of waste and waste inspections carried out - part of procedures"]
["15.06.2020","ELV breach","L1 CO half hour average 1030-1059, 174.06mgNm3","Mixing of waste and waste inspections carried out - part of procedures"]
["17.06.2020","TOC Data loss","2 hours TOC data lost for L1 & L2, 03:30 - 05:00","Fault with Hydrogen cylinders and connection to FID investigated.  "]
["22.06.2020","ELV breach","L2 CO half hour average 09:30-10:00, 101.25mg/nm3","Mixing of waste and waste inspections carried out - part of procedures","Mixing of waste and waste inspections carried out"]
["24.06.2020","ELV breach","L2 CO half hour average 12:30-12:59, 107.42mg/nm3","Mixing of waste and waste inspections carried out - part of procedures","Mixing of waste and waste inspections carried out"]
["30.06.2020","ELV breach","L2 CO half hour average 10:00-10:29, 104.06mg/nm3","Mixing of waste and waste inspections carried out - part of procedures","Mixing of waste and waste inspections carried out"]
["07.07.2020","ELV breach","L2 CO half hour average 19:30-19:59, 151.80mg/nm3","Mixing of waste and waste inspections carried out - part of procedures","Mixing of waste and waste inspections carried out"]
["20.07.2020","TOC Data loss","TOC data loss on L1 & L2, 12:09 - 12:23","H leak occurred during H bottle change. Amended SOP drafted to be followed until leak repaired."]
["16.08.2020","ELV breach","L2 CO half hour average 04:00-04:29, 117.82mg/nm3","Mixing of waste and waste inspections carried out - part of procedures","Mixing of waste and waste inspections carried out"]
["16.08.2020","ELV breach","L2 CO half hour average 12:30-12:59, 462.81mg/nm3","Mixing of waste and waste inspections carried out - part of procedures","Mixing of waste and waste inspections carried out"]
["30.09.2020","Data Loss","Data loss on L2 during QAL3 when standby did not switch over","QAL3 procedure amended to include manual switchover to ensure standby is recording data throughout the process."]
["02.11.2020","Low CO readings","CO readings recorded <0 between 08:30 and 20:00 02.11.2020","RASOP created to perform spot check on daily background checks, ensure N pressure at correct level, alarms to be added to CDAS software, purchase of second standby analyser."]
["20.11.2020","Low TOC readings","TOC readings recorded <0 between 19:00 19.11.2020 and 09:00 20.11.2020","As above.  Service engineer will also be required to monitor readings until the analyser has stabilised (incident occurred directly after a service visit)."]
[]
[]
["Summary of any complaints received and actions to taken to resolve them."]
["Date","Summary of complaint [including Line/Reference]","Reason *","Measures taken to prevent reoccurrence"]
["26.03.2020","Black smoke from A1/A2","No detail provided.  Email and phone conversation with EA officer.  Unsubstantiated","CEMS data and photographs covering the time period in question provided to the EA.\nNo visible evidence of smoke in the images."]
["26.06.2020","Noise - NIRS 1816651","A resident complained to the EA about a noise - similar to a fan - causing disturbance within their area. The complaint was not directed at Kemsley specifically but was suspected of coming from the direction of DS Smith/ K3 (only heard when Northerly wind was blowing). We were informed by the EA inspector during a call discussiong IBA categorisation.","Kemsley have investigated and noted an audible noise in the vicinity of the complaint (on 26/06).  Further investigation of possible links to K3 plant operations was not found.  Kemsley was in contact with the complainant regularly, and Mr Moran stated that he'd not heard the noise since (as wind had not been from Notherly direction since the complaint was first lodged)\nK3 informed Mr Moran that Kemsley had closed the complaint on the 27/07/2020, and the information was forwarded on to the EA inspector ."]
["14.10.2020","Noise","As above - noise said to be coming from K3/ DS Smith.  K3 contacted by EA inspector","Investigation indicated no links to K3 plant operations.  Wind was easterly therefore noise from the general direction of K3 and DS Smith would have been audible to complainant."]
["08.12.2020","Black smoke from A1/A2 - NIRS 1869646","Complaint regarding 'black smoke' logged with EA","CEMS data covering 0//12/2020 24 hour period provided to the EA as well as photographs throughout the day in querstion.  No evidence in CEMS data or photographs to substantiate the claim.."]
[]
[null,null,"* including whether substantiated by the operator or the EA"]

{"sheet":"Improvements","index":8,"n_rows":39,"n_cols":5,"rows_kept":39,"cut":false,"hidden":false,"merged":[[37,0,37,9],[38,0,47,9],[4,0,4,9],[5,0,13,9],[15,0,15,9],[16,0,24,9],[26,0,26,9],[27,0,35,9]]}
[{"$f":"+'Cover Page'!$B$29","v":"Annual Performance Report 2020"},null,null,null,{"$f":"+'Cover Page'!$B$33","v":"Kemsley Generating Station"}]
[]
["Summary of Plant Improvements"]
[]
["Summary of any efficiency improvements that have been completed within the year."]
["N/A.  As the plant was commisioined during the first half of 2020, efficiency improvement opportunities are yet to be identified.  R1 application to be submitted Q1 2021."]
[]
[]
[]
[]
[]
[]
[]
[]
[]
["Summary of any permit improvement conditions that have been completed within the year and the resulting environmental benefits."]
["Improvement conditions relating to commisioning of the plant were submitted in 2020.\n- IC2: Commissioning report\n- IC3: Performance and optimisation of the SNCR system\n- IC5 - T2S (Residence time) testing report\nThese reports provide evidence that the plant has been installed and operated as per design/ permit requirements.\nAwaiting response/ confirmation of discharge."]
[]
[]
[]
[]
[]
[]
[]
[]
[]
["Summary of any changes to the plant or operating techniques which required a variation to the permit and a summary of the resulting environmental impact."]
["A varied permit was issued on 29.07.2020.  This included an increase in throughput tonnages from 550,000tpa to 657,000tpa.  The modelling carried out to support the variation application indicted no significant environmental impact.\nThe variation also included a change from the half-hour average for CO (100mg/nm3) to the 10-minute average (at 150mg/nm3).  This has resulted in no reportable CO permit breaches since implementation in September, as the plant CO emissions have been compliant with the IED requirement of 95% compliance with the ELV."]
[]
[]
[]
[]
[]
[]
[]
[]
[]
["Summary of any other improvements made to the plant or planned to be made and a summary of the resulting environmental benefits."]
["The facility has procured a second standby CEM to ensure no data is lost during malfunction of either of the main CEMs on Line 1 or Line 2."]

{"sheet":"Public Liasion","index":9,"n_rows":31,"n_cols":5,"rows_kept":31,"cut":false,"hidden":false,"merged":[[25,0,26,1],[25,2,26,9],[27,0,28,1],[27,2,28,9],[30,0,30,9],[19,0,20,1],[19,2,20,9],[21,0,22,1],[21,2,22,9],[23,0,24,1],[23,2,24,9],[18,0,18,1],[18,2,18,9],[5,0,5,1],[5,2,5,9],[6,0,7,1],[6,2,7,9],[8,0,9,1],[8,2,9,9],[10,0,11,1],[10,2,11,9],[12,0,13,1],[12,2,13,9]]}
[{"$f":"+'Cover Page'!$B$29","v":"Annual Performance Report 2020"},null,null,null,{"$f":"+'Cover Page'!$B$33","v":"Kemsley Generating Station"}]
[]
["Details of Public & Stakeholder Liasion"]
[]
["Summary of events held during the reporting year."]
["Date",null,"Description"]
["16.01.2020",null,"Quarterly Environmental meeting with DS Smith and E.On"]
[]
["21.04.2020",null,"Quarterly Environmental meeting with DS Smith and E.On"]
[]
["15.07.2020",null,"Quarterly Environmental meeting with DS Smith and E.On"]
[]
["22.10.2020",null,"Quarterly Environmental meeting with DS Smith and E.On"]
[]
["13.12.2020",null,"Kemsley Fields Business Park Forum (KFBPF)"]
[]
[]
["List of events planned for next year"]
["Date",null,"Description"]
["04.02.2021",null,"Quarterly Environmental meeting with DS Smith and E.On"]
[]
["Q2",null,"Quarterly Environmental meeting with DS Smith and E.On"]
[]
["Q3",null,"Quarterly Environmental meeting with DS Smith and E.On"]
[]
["Q4",null,"Quarterly Environmental meeting with DS Smith and E.On"]
[]
[]
[]
[]
["If you wish to be involved in the public liasion programme, please contact _________________"]

{"sheet":"Residue Quality ","index":10,"n_rows":35,"n_cols":6,"rows_kept":35,"cut":false,"hidden":false,"merged":[[35,0,40,6],[32,3,32,4],[34,0,34,6],[27,0,28,1],[29,0,29,1],[30,0,30,1],[31,0,31,1],[32,0,32,1],[29,3,29,4],[30,3,30,4],[29,5,29,6],[30,5,30,6],[31,5,31,6],[32,5,32,6],[20,0,21,1],[20,2,21,6],[22,0,23,1],[22,2,23,6],[31,3,31,4],[27,2,28,2],[28,3,28,4],[28,5,28,6],[27,3,27,6],[26,0,26,6],[5,0,6,6],[7,0,8,6],[9,0,10,6],[14,0,15,1],[14,2,15,6],[16,0,17,1],[16,2,17,6],[18,0,19,1],[18,2,19,6],[12,0,12,6],[13,0,13,1],[13,2,13,6]]}
[{"$f":"+'Cover Page'!$B$29","v":"Annual Performance Report 2020"},null,null,null,{"$f":"+'Cover Page'!$B$33","v":"Kemsley Generating Station"}]
[]
["Residue Quality Monitoring Requirements"]
[]
["Summary of monitoring undertaken and compliance"]
["During commissioning, and once boiler operation had stabilised, start-up monitoring was carried out on the IBA.  24 samples were taken over a 12 week period and analysed for Hazardous properties.  A full 15 hazardous properties analysis was carried out for both IBA and APCr.  All 24 samples were categorised as non-hazardous according to the ESA protocol, and the results have been submitted to the Agency."]
[]
["Hazardous property analysis continues with two samples taken per month.  Monthly samples of both APCr and IBA are taken for Environmental Permit compliance analysis.  Results are submitted to the Agency."]
[]
["IBA continues to pass as non-hazardous, and is compliant with permit requirements."]
[]
[]
["Commentary on any specific events"]
["Date & Event",null,"Description"]
[]
[]
[]
[]
[]
[]
[]
[]
[]
[]
[]
[]
["Residue Quality Monitoring Results"]
["Parameter (unit) ",null,"Limit","Normal Operation "]
[null,null,null,"Bottom ash  ",null,"APC Residues"]
["Loss on Ignition (average %)",null,"<5%",1.1000000000000001]
["Total Organic Carbon (average %)",null,"<3%",0.62]
["No. of Assessments Undertaken",null,"---",36,null,7]
["No. of Hazardous Results",null,"---",0]
[]
["Comments :"]

{"sheet":"Water","index":11,"n_rows":24,"n_cols":10,"rows_kept":24,"cut":false,"hidden":false,"merged":[[29,0,29,2],[29,3,29,5],[26,0,26,2],[26,3,26,5],[27,0,27,2],[27,3,27,5],[28,0,28,2],[28,3,28,5],[23,0,23,2],[23,3,23,5],[24,0,24,2],[24,3,24,5],[25,0,25,2],[25,3,25,5],[21,0,21,9],[22,0,22,2],[22,3,22,5],[14,0,15,1],[14,2,15,9],[16,0,17,1],[16,2,17,9],[18,0,19,1],[18,2,19,9],[5,0,6,9],[7,0,8,9],[9,0,10,9],[12,0,12,9],[13,0,13,1],[13,2,13,9]]}
[{"$f":"+'Cover Page'!$B$29","v":"Annual Performance Report 2020"},null,null,null,{"$f":"+'Cover Page'!$B$33","v":"Kemsley Generating Station"}]
[]
["Emissions to Water"]
[]
["Summary of monitoring undertaken and compliance"]
["N/A.  No limits in permit.  Visual inspections carried out to check for hydrocarbons, and pH testing carried out prior to discharging to Swale."]
[]
[]
[]
[]
[]
[]
["Commentary on any specific events"]
["Date & Event",null,"Description"]
[]
[]
[]
[]
[]
[]
[]
["Emissions to Water / Sewer"]
["Parameter",null,null,"Monitoring Frequency",null,null,"Limit","Target","Max.","Average"]
["N/A",null,null,"N/A",null,null,"N/A","N/A","N/A","N/A"]

{"sheet":"Air (periodic)","index":12,"n_rows":74,"n_cols":14,"rows_kept":74,"cut":false,"hidden":false,"merged":[[16,4,16,5],[25,4,25,5],[31,4,31,5],[17,4,17,5],[18,4,18,5],[19,4,19,5],[20,4,20,5],[21,4,21,5],[22,4,22,5],[29,4,29,5],[23,4,23,5],[24,4,24,5],[26,4,26,5],[11,4,11,5],[12,4,12,5],[13,4,13,5],[14,4,14,5],[15,4,15,5],[38,1,38,10],[17,1,17,2],[18,1,18,2],[19,1,19,2],[32,4,32,5],[33,4,33,5],[31,1,31,2],[32,1,32,2],[33,1,33,2],[34,1,34,2],[22,1,22,2],[30,4,30,5],[39,1,40,10],[23,1,23,2],[24,1,24,2],[20,1,20,2],[21,1,21,2],[35,1,35,2],[25,1,25,2],[26,1,26,2],[27,1,27,2],[28,1,28,2],[29,1,29,2],[30,1,30,2],[35,4,35,5],[27,4,27,5],[28,4,28,5],[34,4,34,5],[14,1,14,2],[15,1,15,2],[16,1,16,2],[11,1,11,2],[12,1,12,2],[13,1,13,2],[10,1,10,2],[9,4,9,5],[10,4,10,5],[7,1,8,2],[7,6,7,10],[7,4,8,5],[7,3,8,3],[5,13,6,16],[7,13,9,16],[6,1,6,10],[9,1,9,2],[5,1,5,5],[48,4,48,5],[49,4,49,5],[50,4,50,5],[45,4,45,5],[46,4,46,5],[47,4,47,5],[54,4,54,5],[55,4,55,5],[56,4,56,5],[51,4,51,5],[52,4,52,5],[53,4,53,5],[60,4,60,5],[61,4,61,5],[62,4,62,5],[57,4,57,5],[58,4,58,5],[59,4,59,5],[4,1,4,5],[72,4,72,5],[73,4,73,5],[36,4,36,5],[37,4,37,5],[36,1,36,2],[37,1,37,2],[69,4,69,5],[70,4,70,5],[71,4,71,5],[66,4,66,5],[67,4,67,5],[68,4,68,5],[63,4,63,5],[64,4,64,5],[65,4,65,5]]}
[null,{"$f":"+'Cover Page'!$B$29","v":"Annual Performance Report 2020"},null,null,null,{"$f":"+'Cover Page'!$B$33","v":"Kemsley Generating Station"}]
[]
[null,"Emissions to Air (periodically monitored)"]
[]
[null,"Summary of monitoring undertaken, standards used and compliance",null,null,null,null,null,null,null,null,null,null,null,"Notes:"]
[null,"Three rounds of monitoring have been undertaken at Kemsley.  The first was during commissionin during Q2.  This report has been submitted to tyhe Agency as part of IC2 - commissioning Report.  Q3 and Q4 stack monitoring was carried out once the plant had been handed over - post-commissioning.  These test results carried out post-handover have been included in calculation of the averages below.",null,null,null,null,null,null,null,null,null,null,null,"Template may require adjustment for any bespoke monitoring requirements of permit. "]
[null,"Results of emissions to air that are periodically monitored"]
[null,"Substance",null,"Ref. Period","Emission Limit Value",null,"Average",null,null,null,null,null,null,"User to add additional tables as necessary, depending on whether quarterly or bi-annual reporting is required for the compliance year"]
[null,null,null,null,null,null,"A1","A2","A3","A4","A5"]
[null,"Hydrogen fluoride",null,"1 hr","2 mg/m3",null,2.9000000000000001E-2,3.4000000000000002E-2]
[null,"Cd and Th and their compounds",null,"6-8hrs","0.05 mg/m3",null,"<0.001",9.5E-4]
[null,"Hg and its compounds",null,"6-8hrs","0.05 mg/m3",null,1.5E-3,2.8999999999999998E-3]
[null,"Sb, As, Pb, Cr, Co, Cu, Mn, Ni, V and their compounds",null,"6-8hrs","0.5 mg/m3",null,5.1999999999999998E-2,3.0499999999999999E-2]
[null,"Dioxins & Furans (I-TEQ)",null,"6-8hrs","0.1 ng/m3",null,1.7000000000000001E-2,1.3000000000000001E-2]
[null,"PCBs (WHO-TEQ Humans / Mammals)",null,"6-8hrs","None set ng/m3",null,1.5625000000000001E-3,9.2050000000000009E-4]
[null,"PCBs (WHO-TEQ Fish)",null,"6-8hrs","None set ng/m3",null,6.8999999999999997E-5,4.4499999999999997E-5]
[null,"PCBs (WHO-TEQ Birds)",null,"6-8hrs","None set ng/m3",null,2.4850000000000002E-3,1.6800000000000001E-3]
[null,"Dioxins & Furans (WHO-TEQ Humans / Mammals)",null,"6-8hrs","None set ng/m3",null,1.6050000000000002E-2,1.175E-2]
[null,"Dioxins & Furans (WHO-TEQ Fish)",null,"6-8hrs","None set ng/m3",null,1.7649999999999999E-2,1.37E-2]
[null,"Dioxins & Furans (WHO-TEQ Birds)",null,"6-8hrs","None set ng/m3",null,2.4850000000000001E-2,2.375E-2]
[null,"Anthanthrene",null,"6-8hrs","None set µg/m3",null,9.6999999999999994E-4,1.065E-3]
[null,"Benzo(a)anthracene",null,"6-8hrs","None set µg/m3",null,2.6800000000000001E-3,2.7100000000000002E-3]
[null,"Benzo(a)pyrene",null,"6-8hrs","None set µg/m3",null,9.6999999999999994E-4,1.065E-3]
[null,"Benzo(b)fluoranthene",null,"6-8hrs","None set µg/m3",null,9.6999999999999994E-4,1.065E-3]
[null,"Benzo(b)naptho(2,1-d) thiophene",null,"6-8hrs","None set µg/m3",null,1.3800000000000002E-3,1.065E-3]
[null,"Benzo(c)phenanthrene",null,"6-8hrs","None set µg/m3",null,1.17E-3,1.4399999999999999E-3]
[null,"Benzo(ghi)perylene",null,"6-8hrs","None set µg/m3",null,9.6999999999999994E-4,1.065E-3]
[null,"Benzo(k)fluoranthene",null,"6-8hrs","None set µg/m3",null,9.6999999999999994E-4,1.065E-3]
[null,"Cholanthrene",null,"6-8hrs","None set µg/m3",null,9.6999999999999994E-4,1.065E-3]
[null,"Chrysene",null,"6-8hrs","None set µg/m3",null,2.8E-3,2.1350000000000002E-3]
[null,"Cyclopenta(cd)pyrene",null,"6-8hrs","None set µg/m3",null,9.6999999999999994E-4,1.065E-3]
[null,"Dibenzo(ai)pyrene",null,"6-8hrs","None set µg/m3",null,9.6999999999999994E-4,1.065E-3]
[null,"Dibenzo(ah)anthracene",null,"6-8hrs","None set µg/m3",null,9.6999999999999994E-4,1.065E-3]
[null,"Fluoranthene",null,"6-8hrs","None set µg/m3",null,1.5945000000000001E-2,9.3400000000000011E-3]
[null,"Indeno(123-cd) pyrene",null,"6-8hrs","None set µg/m3",null,9.6999999999999994E-4,1.065E-3]
[null,"Naphthalene",null,"6-8hrs","None set µg/m3",null,3.8293249999999999,1.3737200000000001]
[null,"PM10",null,null,"None set µg/m3",null,3.9E-2,0.04]
[null,"PM 2.5",null,null,"None set µg/m3",null,4.1000000000000002E-2,0.04]
[null,"Comments :"]
[]
[]
[]
[]
[null,null,null,null,null,null,"Q3",null,"Q4",null,"Averages"]
[null,"Emissions monitoring results for Q3 and Q4",null,null,null,null,"L1","L2","L1","L2","L1","L2"]
[null,"Hydrogen fluoride",null,"1 hr","2 mg/m3",null,2.9000000000000001E-2,"<0.028","<0.03","<0.04",{"$f":"AVERAGE(I46,G46)","v":2.9000000000000001E-2},{"$f":"AVERAGE(0.04,0.028)","v":3.4000000000000002E-2}]
[null,"Cd and Th and their compounds",null,"6-8hrs","0.05 mg/m3",null,"<0.001","<0.0009","<0.001","<0.001","<0.001",{"$f":"AVERAGE(0.001,0.0009)","v":9.5E-4}]
[null,"Hg and its compounds",null,"6-8hrs","0.05 mg/m3",null,2E-3,1.8E-3,1E-3,4.0000000000000001E-3,{"$f":"AVERAGE(I48,G48)","v":1.5E-3},{"$f":"AVERAGE(H48,J48)","v":2.8999999999999998E-3}]
[null,"Sb, As, Pb, Cr, Co, Cu, Mn, Ni, V and their compounds",null,"6-8hrs","0.5 mg/m3",null,0.09,0.05,1.4E-2,1.0999999999999999E-2,5.1999999999999998E-2,3.0499999999999999E-2]
[null,"Dioxins & Furans (I-TEQ)",null,"6-8hrs","0.1 ng/m3",null,2.4E-2,0.02,0.01,6.0000000000000001E-3,1.7000000000000001E-2,1.3000000000000001E-2]
[null,"PCBs (WHO-TEQ Humans / Mammals)",null,"6-8hrs","None set ng/m3",null,2.1299999999999999E-3,1.25E-3,9.9500000000000001E-4,5.9100000000000005E-4,1.5625000000000001E-3,9.2050000000000009E-4]
[null,"PCBs (WHO-TEQ Fish)",null,"6-8hrs","None set ng/m3",null,9.0000000000000006E-5,6.0000000000000002E-5,4.8000000000000001E-5,2.9E-5,6.8999999999999997E-5,4.4499999999999997E-5]
[null,"PCBs (WHO-TEQ Birds)",null,"6-8hrs","None set ng/m3",null,3.0000000000000001E-3,1.9599999999999999E-3,1.97E-3,1.4E-3,2.4850000000000002E-3,1.6800000000000001E-3]
[null,"Dioxins & Furans (WHO-TEQ Humans / Mammals)",null,"6-8hrs","None set ng/m3",null,2.3E-2,1.7999999999999999E-2,9.1000000000000004E-3,5.4999999999999997E-3,1.6050000000000002E-2,1.175E-2]
[null,"Dioxins & Furans (WHO-TEQ Fish)",null,"6-8hrs","None set ng/m3",null,2.5000000000000001E-2,2.1000000000000001E-2,1.03E-2,6.4000000000000003E-3,1.7649999999999999E-2,1.37E-2]
[null,"Dioxins & Furans (WHO-TEQ Birds)",null,"6-8hrs","None set ng/m3",null,3.4000000000000002E-2,3.5999999999999997E-2,1.5699999999999999E-2,1.15E-2,2.4850000000000001E-2,2.375E-2]
[null,"Anthanthrene",null,"6-8hrs","None set µg/m3",null,"<0.0014","<0.0014","<0.00054","<0.00073",{"$f":"AVERAGE(0.00054,0.0014)","v":9.6999999999999994E-4},{"$f":"AVERAGE(0.0014,0.00073)","v":1.065E-3}]
[null,"Benzo(a)anthracene",null,"6-8hrs","None set µg/m3",null,"<0.0014","<0.0014",2.6800000000000001E-3,2.7100000000000002E-3,{"$f":"AVERAGE(I58,G58)","v":2.6800000000000001E-3},{"$f":"AVERAGE(H58,J58)","v":2.7100000000000002E-3}]
[null,"Benzo(a)pyrene",null,"6-8hrs","None set µg/m3",null,"<0.0014","<0.0014","<0.00054","<0.00073",{"$f":"AVERAGE(0.00054,0.0014)","v":9.6999999999999994E-4},{"$f":"AVERAGE(0.0014,0.00073)","v":1.065E-3}]
[null,"Benzo(b)fluoranthene",null,"6-8hrs","None set µg/m3",null,"<0.0014","<0.0014","<0.00054","<0.00073",{"$f":"AVERAGE(0.00054,0.0014)","v":9.6999999999999994E-4},1.065E-3]
[null,"Benzo(b)naptho(2,1-d) thiophene",null,"6-8hrs","None set µg/m3",null,"<0.0014","<0.0014",1.3600000000000001E-3,"<0.00073",{"$f":"AVERAGE(I61,0.0014)","v":1.3800000000000002E-3},1.065E-3]
[null,"Benzo(c)phenanthrene",null,"6-8hrs","None set µg/m3",null,"<0.0014","<0.0014",1.17E-3,1.48E-3,{"$f":"AVERAGE(I62,G62)","v":1.17E-3},{"$f":"AVERAGE(0.0014,J62)","v":1.4399999999999999E-3}]
[null,"Benzo(ghi)perylene",null,"6-8hrs","None set µg/m3",null,"<0.0014","<0.0014","<0.00054","<0.00073",{"$f":"AVERAGE(0.00054,0.0014)","v":9.6999999999999994E-4},{"$f":"AVERAGE(0.0014,0.00073)","v":1.065E-3}]
[null,"Benzo(k)fluoranthene",null,"6-8hrs","None set µg/m3",null,"<0.0014","<0.0014","<0.00054","<0.00073",9.6999999999999994E-4,1.065E-3]
[null,"Cholanthrene",null,"6-8hrs","None set µg/m3",null,"<0.0014","<0.0014","<0.00054","<0.00073",9.6999999999999994E-4,1.065E-3]
[null,"Chrysene",null,"6-8hrs","None set µg/m3",null,2E-3,"<0.0014",3.5999999999999999E-3,2.8700000000000002E-3,{"$f":"AVERAGE(I66,G66)","v":2.8E-3},{"$f":"AVERAGE(0.0014,J66)","v":2.1350000000000002E-3}]
[null,"Cyclopenta(cd)pyrene",null,"6-8hrs","None set µg/m3",null,"<0.0014","<0.0014","<0.00054","<0.00073",{"$f":"AVERAGE(0.00054,0.0014)","v":9.6999999999999994E-4},{"$f":"AVERAGE(0.0014,0.00073)","v":1.065E-3}]
[null,"Dibenzo(ai)pyrene",null,"6-8hrs","None set µg/m3",null,"<0.0014","<0.0014","<0.00054","<0.00073",9.6999999999999994E-4,1.065E-3]
[null,"Dibenzo(ah)anthracene",null,"6-8hrs","None set µg/m3",null,"<0.0014","<0.0014","<0.00054","<0.00073",9.6999999999999994E-4,1.065E-3]
[null,"Fluoranthene",null,"6-8hrs","None set µg/m3",null,2.3900000000000001E-2,4.8999999999999998E-3,7.9900000000000006E-3,1.3780000000000001E-2,{"$f":"AVERAGE(I70,G70)","v":1.5945000000000001E-2},{"$f":"AVERAGE(H70,J70)","v":9.3400000000000011E-3}]
[null,"Indeno(123-cd) pyrene",null,"6-8hrs","None set µg/m3",null,"<0.0014","<0.0014","<0.00054",7.2999999999999996E-4,{"$f":"AVERAGE(0.0014,0.00054)","v":9.6999999999999994E-4},{"$f":"AVERAGE(0.0014,0.00073)","v":1.065E-3}]
[null,"Naphthalene",null,"6-8hrs","None set µg/m3",null,7.5,2.5,0.15865000000000001,0.24743999999999999,{"$f":"AVERAGE(I72,G72)","v":3.8293249999999999},{"$f":"AVERAGE(H72,J72)","v":1.3737200000000001}]
[null,"PM10",null,null,null,null,null,null,3.9E-2,0.04,{"$f":"AVERAGE(I73,G73)","v":3.9E-2},0.04]
[null,"PM 2.5",null,null,null,null,null,null,4.1000000000000002E-2,0.04,{"$f":"AVERAGE(I74,G74)","v":4.1000000000000002E-2},0.04]

{"sheet":"Air (CEMS)","index":13,"n_rows":30,"n_cols":10,"rows_kept":30,"cut":false,"hidden":false,"merged":[[5,0,6,6],[7,0,8,6],[10,0,10,6],[11,0,12,0],[11,2,12,2],[11,1,12,1],[11,3,11,4],[11,5,11,6],[8,9,20,9],[23,9,35,9],[27,0,27,6],[29,0,30,6],[13,0,14,0]]}
[{"$f":"+'Cover Page'!$B$29","v":"Annual Performance Report 2020"}]
[]
["Emissions to Air (continously monitored)"]
[null,null,null,null,null,null,null,null,null,"Notes:"]
["Summary of monitoring undertaken, standards used and compliance",null,null,null,null,null,null,null,null,"Template may require adjustment for any bespoke monitoring requirements of permit"]
["Kemsley has installed MCERT's equipment to continuously monitor emissions as required by the permit.  The analysers have been commissioned and tested and undergone QAL2 calibration.",null,null,null,null,null,null,null,null,"Report to 2 decimal places, i.e. xx.xx%"]
[]
["ELV breaches were related to CO spikes (primarily during commissioning).  No other limit breaches have occurred during 2020"]
[]
[]
["Results of emissions to air that are continuously monitored (maximum and average values for each line)"]
["Substance","Reference Period","Emission Limit Value","A1",null,"A2"]
[null,null,null,"Max.","Avg.","Max.","Avg."]
["Oxides of nitrogen","Daily mean","200 mg/m3 ",{"$f":"NOx!O19","v":179.61},{"$f":"NOx!N19","v":153.71166666666667},{"$f":"NOx!O34","v":166.76},{"$f":"NOx!N34","v":153.83333333333331}]
[null,"½ hourly mean","400 mg/m3 ",{"$f":"NOx!M19","v":252.12},{"$f":"NOx!L19","v":153.70833333333334},{"$f":"NOx!M34","v":252.21},{"$f":"NOx!L34","v":153.86333333333334}]
["Particulates","Daily mean","10 mg/m3",{"$f":"Particulates!O19","v":0.08},{"$f":"Particulates!N19","v":7.166666666666667E-2},{"$f":"Particulates!O34","v":0.23},{"$f":"Particulates!N34","v":0.13333333333333333}]
[null,"½ hourly mean","30 mg/m3 ",{"$f":"Particulates!M19","v":0.14000000000000001},{"$f":"Particulates!L19","v":7.166666666666667E-2},{"$f":"Particulates!M34","v":0.25},{"$f":"Particulates!L34","v":0.13333333333333333}]
["Total Organic Carbon ","Daily mean","10 mg/m3 ",{"$f":"TOC!O19","v":0.91},{"$f":"TOC!N19","v":0.23833333333333337},{"$f":"TOC!O34","v":0.59},{"$f":"TOC!N34","v":0.19666666666666668}]
[null,"½ hourly mean","20 mg/m3 ",{"$f":"TOC!M19","v":2.29},{"$f":"TOC!L19","v":0.24000000000000002},{"$f":"TOC!M34","v":5.26},{"$f":"TOC!L34","v":0.20000000000000004}]
["Hydrogen chloride ","Daily mean","10 mg/m3 ",{"$f":"HCl!O19","v":7.84},{"$f":"HCl!N19","v":3.7866666666666666},{"$f":"HCl!O34","v":8.92},{"$f":"HCl!N34","v":4.8983333333333334}]
[null,"½ hourly mean","60 mg/m3 ",{"$f":"HCl!M19","v":14.43},{"$f":"HCl!L19","v":3.77},{"$f":"HCl!M34","v":24.26},{"$f":"HCl!L34","v":4.9166666666666661}]
["Sulphur dioxide","Daily mean","50 mg/m3 ",{"$f":"'SO2'!O19","v":16.93},{"$f":"'SO2'!N19","v":3.6733333333333333},{"$f":"'SO2'!O34","v":10.09},{"$f":"'SO2'!N34","v":4.0933333333333328}]
[null,"½ hourly mean","200 mg/m3 ",{"$f":"'SO2'!M19","v":57.41},{"$f":"'SO2'!L19","v":3.6916666666666664},{"$f":"'SO2'!M34","v":60.13},{"$f":"'SO2'!L34","v":4.13}]
["Carbon monoxide ","Daily mean","50 mg/m3 ",{"$f":"'CO 0.5hourly'!O19","v":13.46},{"$f":"'CO 0.5hourly'!N19","v":4.668333333333333},{"$f":"'CO 0.5hourly'!O34","v":16},{"$f":"'CO 0.5hourly'!N34","v":4.8650000000000002}]
[null,"½ hourly mean *","100 mg/m3 *",{"$f":"'CO 0.5hourly'!M19","v":462.81},{"$f":"'CO 0.5hourly'!L19","v":4.7149999999999999},{"$f":"'CO 0.5hourly'!M34","v":397.52},{"$f":"'CO 0.5hourly'!L34","v":4.9549999999999992}]
[null,"95%ile 10-min avg *","150 mg/m3 *",{"$f":"'CO 95% 10 min'!O19","v":1347.22},{"$f":"'CO 95% 10 min'!N19","v":4.7149999999999999},{"$f":"'CO 95% 10 min'!O34","v":1048.96},{"$f":"'CO 95% 10 min'!N34","v":4.9733333333333336}]
[" Ammonia","Daily mean","No limit set",{"$f":"'NH3'!O19","v":1.9},{"$f":"'NH3'!N19","v":0.64166666666666672},{"$f":"'NH3'!O34","v":2.2599999999999998},{"$f":"'NH3'!N34","v":0.47833333333333344}]
["* = delete or amend as appropriate"]
["Comments :"]
["Both the half-hourly and 10-minute data has been reported as the permit was varied in August 2020, and the 10-minute average adopted in mid-September."]

{"sheet":"HCl","index":14,"n_rows":49,"n_cols":17,"rows_kept":49,"cut":false,"hidden":false,"merged":[[12,16,15,18],[51,9,63,9],[66,9,78,9],[4,9,4,14],[4,1,4,3],[4,4,4,6],[48,0,51,6],[47,0,47,6],[6,9,18,9],[21,9,33,9],[36,9,48,9],[3,16,7,18],[9,16,11,18]]}
[{"$f":"+'Cover Page'!$B$29","v":"Annual Performance Report 2020"},null,null,null,{"$f":"+'Cover Page'!$B$33","v":"Kemsley Generating Station"}]
[]
["Monitoring of Hydrogen Chloride emissions",null,null,"Whole Installation",null,null,"See  Notes in Cell Q3",null,null,{"$f":"+A3","v":"Monitoring of Hydrogen Chloride emissions"},null,null,null,"Per Combustion Line",null,null,"Notes:"]
[null,null,null,null,null,null,null,null,null,null,null,null,null,null,null,null,"User to add logic to complete Whole installation, Table A5:G18. From the data in Per Combustion Line, Table J6:O79, subject to No. of lines installed"]
["mg/Nm3","1/2 Hourly Reference Periods",null,null,"Daily Reference Periods"]
[{"$f":"+'Cover Page'!C39","v":2020},"1/2 hourly HCl ELV","Monthly 1/2 hourly mean","Highest 1/2 hourly maximum","Daily HCl ELV","Monthly daily mean","Highest daily maximum",null,null,{"$f":"+A6","v":2020},"mg/Nm3","Monthly 1/2 hourly mean","Monthly 1/2 hourly maximum","Monthly daily mean","Monthly daily maximum"]
["Jan",60,null,null,10,null,null,null,null,"A1","Jan"]
["Feb",60,null,null,10,null,null,null,null,null,"Feb"]
["Mar",60,null,null,10,null,null,null,null,null,"Mar",null,null,null,null,null,"Whole Installation table A5:G18:"]
["Apr",60,null,null,10,null,null,null,null,null,"Apr",null,null,null,null,null,"Mean: for 1/2 hourly and daily periods calculate mean of values across all operational combustion lines for the month"]
["May",60,null,null,10,null,null,null,null,null,"May"]
["Jun",60,null,null,10,null,null,null,null,null,"Jun"]
["Jul",60,5.1100000000000003,11.21,10,5.1100000000000003,8.92,null,null,null,"Jul",4.2300000000000004,9.8699999999999992,4.25,7.4,null,"Maximum: for 1/2 hourly and daily periods use the highest value across all operational combustion lines for the month"]
["Aug",60,4.0599999999999996,12.21,10,4.0199999999999996,7.27,null,null,null,"Aug",3.67,9.1199999999999992,3.68,6.09]
["Sep",60,3.05,15.73,10,3.04,5.54,null,null,null,"Sep",2.82,13.86,2.84,5.54]
["Oct",60,3.6,12.69,10,3.62,7.65,null,null,null,"Oct",3.56,9.11,3.61,7.11]
["Nov",60,5.39,24.26,10,5.39,7.84,null,null,null,"Nov",4.97,14.43,4.97,7.84]
["Dec",60,4.8499999999999996,14.63,10,4.8,8.5,null,null,null,"Dec",3.37,14.26,3.37,5.25]
[null,null,null,null,null,null,null,null,null,null,"Annual",{"$f":"AVERAGE(L7:L18)","v":3.77},{"$f":"MAX(M7:M18)","v":14.43},{"$f":"AVERAGE(N7:N18)","v":3.7866666666666666},{"$f":"MAX(O7:O18)","v":7.84}]
[]
[null,null,null,null,null,null,null,null,null,{"$f":"+A6","v":2020},"mg/Nm3","Monthly 1/2 hourly mean","Monthly 1/2 hourly maximum","Monthly daily mean","Monthly daily maximum"]
[null,null,null,null,null,null,null,null,null,"A2","Jan"]
[null,null,null,null,null,null,null,null,null,null,"Feb"]
[null,null,null,null,null,null,null,null,null,null,"Mar"]
[null,null,null,null,null,null,null,null,null,null,"Apr"]
[null,null,null,null,null,null,null,null,null,null,"May"]
[null,null,null,null,null,null,null,null,null,null,"Jun"]
[null,null,null,null,null,null,null,null,null,null,"Jul",5.99,11.21,5.97,8.92]
[null,null,null,null,null,null,null,null,null,null,"Aug",4.43,12.21,4.3600000000000003,7.27]
[null,null,null,null,null,null,null,null,null,null,"Sep",3.26,15.73,3.23,4.3899999999999997]
[null,null,null,null,null,null,null,null,null,null,"Oct",3.63,12.69,3.63,7.65]
[null,null,null,null,null,null,null,null,null,null,"Nov",5.81,24.26,5.81,7.79]
[null,null,null,null,null,null,null,null,null,null,"Dec",6.38,14.63,6.39,8.5]
[null,null,null,null,null,null,null,null,null,null,"Annual",{"$f":"AVERAGE(L22:L33)","v":4.9166666666666661},{"$f":"MAX(M22:M33)","v":24.26},{"$f":"AVERAGE(N22:N33)","v":4.8983333333333334},{"$f":"MAX(O22:O33)","v":8.92}]
[]
[]
[]
[]
[]
[]
[]
[]
[]
[]
[]
[]
[]
["Comments :"]
["The reported data is from Q3 and Q4 - after plant hand-over from EPC contractor CNIM to Wheelabrator on 16th July 2020.  Reports prior to this were submitted as part of the Q2 returns."]

{"sheet":"SO2","index":15,"n_rows":49,"n_cols":17,"rows_kept":49,"cut":false,"hidden":false,"merged":[[3,16,7,18],[9,16,11,18],[12,16,15,18],[66,9,78,9],[4,1,4,3],[4,4,4,6],[4,9,4,14],[6,9,18,9],[21,9,33,9],[36,9,48,9],[47,0,47,6],[48,0,51,6],[51,9,63,9]]}
[{"$f":"+'Cover Page'!$B$29","v":"Annual Performance Report 2020"},null,null,null,{"$f":"+'Cover Page'!$B$33","v":"Kemsley Generating Station"}]
[]
["Monitoring of Sulphur dioxide emissions",null,null,"Whole Installation",null,null,"See  Notes in Cell Q3",null,null,{"$f":"+A3","v":"Monitoring of Sulphur dioxide emissions"},null,null,null,"Per Combustion Line",null,null,"Notes:"]
[null,null,null,null,null,null,null,null,null,null,null,null,null,null,null,null,"User to add logic to complete Whole installation, Table A5:G18. From the data in Per Combustion Line, Table J6:O79, subject to No. of lines installed"]
["mg/Nm3","1/2 Hourly Reference Periods",null,null,"Daily Reference Periods"]
[{"$f":"+'Cover Page'!C39","v":2020},"1/2 hourly SO2 ELV","Monthly 1/2 hourly mean","Highest 1/2 hourly maximum","Daily SO2 ELV","Monthly daily mean","Highest daily maximum",null,null,{"$f":"+A6","v":2020},"mg/Nm3","Monthly 1/2 hourly mean","Monthly 1/2 hourly maximum","Monthly daily mean","Monthly daily maximum"]
["Jan",200,null,null,50,null,null,null,null,"A1","Jan"]
["Feb",200,null,null,50,null,null,null,null,null,"Feb"]
["Mar",200,null,null,50,null,null,null,null,null,"Mar",null,null,null,null,null,"Whole Installation table A5:G18:"]
["Apr",200,null,null,50,null,null,null,null,null,"Apr",null,null,null,null,null,"Mean: for 1/2 hourly and daily periods calculate mean of values across all operational combustion lines for the month"]
["May",200,null,null,50,null,null,null,null,null,"May"]
["Jun",200,null,null,50,null,null,null,null,null,"Jun"]
["Jul",200,3.06,60.13,50,2.99,5.1100000000000003,null,null,null,"Jul",2.2999999999999998,16.850000000000001,2.29,3.64,null,"Maximum: for 1/2 hourly and daily periods use the highest value across all operational combustion lines for the month"]
["Aug",200,4.62,37.68,50,4.5999999999999996,9.08,null,null,null,"Aug",3.76,37.68,3.81,9.08]
["Sep",200,5.0599999999999996,46.12,50,5.09,12.68,null,null,null,"Sep",4.7300000000000004,38.71,4.72,12.68]
["Oct",200,5.17,50.17,50,5.0999999999999996,13.7,null,null,null,"Oct",5.18,50.17,5.04,13.7]
["Nov",200,3.11,57.41,50,3.11,16.93,null,null,null,"Nov",4.0199999999999996,57.41,4.0199999999999996,16.93]
["Dec",200,2.4700000000000002,37.94,50,2.41,7.91,null,null,null,"Dec",2.16,37.94,2.16,4.2699999999999996]
[null,null,null,null,null,null,null,null,null,null,"Annual",{"$f":"AVERAGE(L7:L18)","v":3.6916666666666664},{"$f":"MAX(M7:M18)","v":57.41},{"$f":"AVERAGE(N7:N18)","v":3.6733333333333333},{"$f":"MAX(O7:O18)","v":16.93}]
[]
[null,null,null,null,null,null,null,null,null,{"$f":"+A6","v":2020},"mg/Nm3","Monthly 1/2 hourly mean","Monthly 1/2 hourly maximum","Monthly daily mean","Monthly daily maximum"]
[null,null,null,null,null,null,null,null,null,"A2","Jan"]
[null,null,null,null,null,null,null,null,null,null,"Feb"]
[null,null,null,null,null,null,null,null,null,null,"Mar"]
[null,null,null,null,null,null,null,null,null,null,"Apr"]
[null,null,null,null,null,null,null,null,null,null,"May"]
[null,null,null,null,null,null,null,null,null,null,"Jun"]
[null,null,null,null,null,null,null,null,null,null,"Jul",3.82,60.13,3.68,5.1100000000000003]
[null,null,null,null,null,null,null,null,null,null,"Aug",5.45,35.549999999999997,5.4,8.16]
[null,null,null,null,null,null,null,null,null,null,"Sep",5.36,46.12,5.44,9.2200000000000006]
[null,null,null,null,null,null,null,null,null,null,"Oct",5.16,37.520000000000003,5.16,10.09]
[null,null,null,null,null,null,null,null,null,null,"Nov",2.2000000000000002,41.23,2.2000000000000002,3.61]
[null,null,null,null,null,null,null,null,null,null,"Dec",2.79,33.07,2.68,7.91]
[null,null,null,null,null,null,null,null,null,null,"Annual",{"$f":"AVERAGE(L22:L33)","v":4.13},{"$f":"MAX(M22:M33)","v":60.13},{"$f":"AVERAGE(N22:N33)","v":4.0933333333333328},{"$f":"MAX(O22:O33)","v":10.09}]
[]
[]
[]
[]
[]
[]
[]
[]
[]
[]
[]
[]
[]
["Comments :"]
["The reported data is from Q3 and Q4 - after plant hand-over from EPC contractor CNIM to Wheelabrator on 16th July 2020.  Reports prior to this were submitted as part of the Q2 returns."]

{"sheet":"NOx","index":16,"n_rows":49,"n_cols":17,"rows_kept":49,"cut":false,"hidden":false,"merged":[[3,16,7,18],[9,16,11,18],[12,16,15,18],[66,9,78,9],[4,1,4,3],[4,4,4,6],[4,9,4,14],[6,9,18,9],[21,9,33,9],[36,9,48,9],[47,0,47,6],[48,0,51,6],[51,9,63,9]]}
[{"$f":"+'Cover Page'!$B$29","v":"Annual Performance Report 2020"},null,null,null,{"$f":"+'Cover Page'!$B$33","v":"Kemsley Generating Station"}]
[]
["Monitoring of Oxides of Nitrogen emissions",null,null,"Whole Installation",null,null,"See  Notes in Cell Q3",null,null,{"$f":"+A3","v":"Monitoring of Oxides of Nitrogen emissions"},null,null,null,"Per Combustion Line",null,null,"Notes:"]
[null,null,null,null,null,null,null,null,null,null,null,null,null,null,null,null,"User to add logic to complete Whole installation, Table A5:G18. From the data in Per Combustion Line, Table J6:O79, subject to No. of lines installed"]
["mg/Nm3","1/2 Hourly Reference Periods",null,null,"Daily Reference Periods"]
[{"$f":"+'Cover Page'!C39","v":2020},"1/2 hourly NOx ELV","Monthly 1/2 hourly mean","Highest 1/2 hourly maximum","Daily NOx ELV","Monthly daily mean","Highest daily maximum",null,null,{"$f":"+A6","v":2020},"mg/Nm3","Monthly 1/2 hourly mean","Monthly 1/2 hourly maximum","Monthly daily mean","Monthly daily maximum"]
["Jan",400,null,null,200,null,null,null,null,"A1","Jan"]
["Feb",400,null,null,200,null,null,null,null,null,"Feb"]
["Mar",400,null,null,200,null,null,null,null,null,"Mar",null,null,null,null,null,"Whole Installation table A5:G18:"]
["Apr",400,null,null,200,null,null,null,null,null,"Apr",null,null,null,null,null,"Mean: for 1/2 hourly and daily periods calculate mean of values across all operational combustion lines for the month"]
["May",400,null,null,200,null,null,null,null,null,"May"]
["Jun",400,null,null,200,null,null,null,null,null,"Jun"]
["Jul",400,153.83000000000001,245.57,200,153.80000000000001,167.02,null,null,null,"Jul",153.56,245.57,153.57,167.02,null,"Maximum: for 1/2 hourly and daily periods use the highest value across all operational combustion lines for the month"]
["Aug",400,155.27000000000001,252.21,200,155.22,166.76,null,null,null,"Aug",155.13999999999999,231.97,155.18,164.85]
["Sep",400,153.58000000000001,248.24,200,153.59,161.69,null,null,null,"Sep",153.30000000000001,248.24,153.21,158.26]
["Oct",400,153.97,240.42,200,153.99,179.61,null,null,null,"Oct",154.83000000000001,240.42,154.88999999999999,179.61]
["Nov",400,153.09,233.88,200,153.09,161.82,null,null,null,"Nov",152.9,213.17,152.9,161.82]
["Dec",400,152.97999999999999,252.12,200,152.91999999999999,160.77000000000001,null,null,null,"Dec",152.52000000000001,252.12,152.52000000000001,160.77000000000001]
[null,null,null,null,null,null,null,null,null,null,"Annual",{"$f":"AVERAGE(L7:L18)","v":153.70833333333334},{"$f":"MAX(M7:M18)","v":252.12},{"$f":"AVERAGE(N7:N18)","v":153.71166666666667},{"$f":"MAX(O7:O18)","v":179.61}]
[]
[null,null,null,null,null,null,null,null,null,{"$f":"+A6","v":2020},"mg/Nm3","Monthly 1/2 hourly mean","Monthly 1/2 hourly maximum","Monthly daily mean","Monthly daily maximum"]
[null,null,null,null,null,null,null,null,null,"A2","Jan"]
[null,null,null,null,null,null,null,null,null,null,"Feb"]
[null,null,null,null,null,null,null,null,null,null,"Mar"]
[null,null,null,null,null,null,null,null,null,null,"Apr"]
[null,null,null,null,null,null,null,null,null,null,"May"]
[null,null,null,null,null,null,null,null,null,null,"Jun"]
[null,null,null,null,null,null,null,null,null,null,"Jul",154.1,222.39,154.04,158.65]
[null,null,null,null,null,null,null,null,null,null,"Aug",155.38,252.21,155.26,166.76]
[null,null,null,null,null,null,null,null,null,null,"Sep",153.84,246.89,153.94999999999999,161.69]
[null,null,null,null,null,null,null,null,null,null,"Oct",153.11000000000001,237.01,153.11000000000001,157.38]
[null,null,null,null,null,null,null,null,null,null,"Nov",153.28,233.88,153.28,161.03]
[null,null,null,null,null,null,null,null,null,null,"Dec",153.47,235.03,153.36000000000001,158.74]
[null,null,null,null,null,null,null,null,null,null,"Annual",{"$f":"AVERAGE(L22:L33)","v":153.86333333333334},{"$f":"MAX(M22:M33)","v":252.21},{"$f":"AVERAGE(N22:N33)","v":153.83333333333331},{"$f":"MAX(O22:O33)","v":166.76}]
[]
[]
[]
[]
[]
[]
[]
[]
[]
[]
[]
[]
[]
["Comments :"]
["The reported data is from Q3 and Q4 - after plant hand-over from EPC contractor CNIM to Wheelabrator on 16th July 2020.  Reports prior to this were submitted as part of the Q2 returns."]

{"sheet":"TOC","index":17,"n_rows":49,"n_cols":17,"rows_kept":49,"cut":false,"hidden":false,"merged":[[3,16,7,18],[9,16,11,18],[12,16,15,18],[66,9,78,9],[4,1,4,3],[4,4,4,6],[4,9,4,14],[6,9,18,9],[21,9,33,9],[36,9,48,9],[47,0,47,6],[48,0,51,6],[51,9,63,9]]}
[{"$f":"+'Cover Page'!$B$29","v":"Annual Performance Report 2020"},null,null,null,{"$f":"+'Cover Page'!$B$33","v":"Kemsley Generating Station"}]
[]
["Monitoring of Total organic carbon emissions",null,null,"Whole Installation",null,null,"See  Notes in Cell Q3",null,null,{"$f":"+A3","v":"Monitoring of Total organic carbon emissions"},null,null,null,"Per Combustion Line",null,null,"Notes:"]
[null,null,null,null,null,null,null,null,null,null,null,null,null,null,null,null,"User to add logic to complete Whole installation, Table A5:G18. From the data in Per Combustion Line, Table J6:O79, subject to No. of lines installed"]
["mg/Nm3","1/2 Hourly Reference Periods",null,null,"Daily Reference Periods"]
[{"$f":"+'Cover Page'!C39","v":2020},"1/2 hourly TOC ELV","Monthly 1/2 hourly mean","Highest 1/2 hourly maximum","Daily TOC ELV","Monthly daily mean","Highest daily maximum",null,null,{"$f":"+A6","v":2020},"mg/Nm3","Monthly 1/2 hourly mean","Monthly 1/2 hourly maximum","Monthly daily mean","Monthly daily maximum"]
["Jan",20,null,null,10,null,null,null,null,"A1","Jan"]
["Feb",20,null,null,10,null,null,null,null,null,"Feb"]
["Mar",20,null,null,10,null,null,null,null,null,"Mar",null,null,null,null,null,"Whole Installation table A5:G18:"]
["Apr",20,null,null,10,null,null,null,null,null,"Apr",null,null,null,null,null,"Mean: for 1/2 hourly and daily periods calculate mean of values across all operational combustion lines for the month"]
["May",20,null,null,10,null,null,null,null,null,"May"]
["Jun",20,null,null,10,null,null,null,null,null,"Jun"]
["Jul",20,0.24,2.29,10,0.24,0.91,null,null,null,"Jul",0.33,2.29,0.34,0.91,null,"Maximum: for 1/2 hourly and daily periods use the highest value across all operational combustion lines for the month"]
["Aug",20,0.21,1.21,10,0.21,0.59,null,null,null,"Aug",0.23,0.99,0.23,0.48]
["Sep",20,0.14000000000000001,2.12,10,0.13,0.28999999999999998,null,null,null,"Sep",0.18,2.12,0.17,0.28999999999999998]
["Oct",20,0.1,0.67,10,0.1,0.2,null,null,null,"Oct",0.14000000000000001,0.67,0.13,0.2]
["Nov",20,0.26,2.12,10,0.26,0.57999999999999996,null,null,null,"Nov",0.24,0.41,0.24,0.36]
["Dec",20,0.36,5.26,10,0.36,0.57999999999999996,null,null,null,"Dec",0.32,0.72,0.32,0.35]
[null,null,null,null,null,null,null,null,null,null,"Annual",{"$f":"AVERAGE(L7:L18)","v":0.24000000000000002},{"$f":"MAX(M7:M18)","v":2.29},{"$f":"AVERAGE(N7:N18)","v":0.23833333333333337},{"$f":"MAX(O7:O18)","v":0.91}]
[]
[null,null,null,null,null,null,null,null,null,{"$f":"+A6","v":2020},"mg/Nm3","Monthly 1/2 hourly mean","Monthly 1/2 hourly maximum","Monthly daily mean","Monthly daily maximum"]
[null,null,null,null,null,null,null,null,null,"A2","Jan"]
[null,null,null,null,null,null,null,null,null,null,"Feb"]
[null,null,null,null,null,null,null,null,null,null,"Mar"]
[null,null,null,null,null,null,null,null,null,null,"Apr"]
[null,null,null,null,null,null,null,null,null,null,"May"]
[null,null,null,null,null,null,null,null,null,null,"Jun"]
[null,null,null,null,null,null,null,null,null,null,"Jul",0.14000000000000001,0.39,0.14000000000000001,0.21]
[null,null,null,null,null,null,null,null,null,null,"Aug",0.19,1.21,0.19,0.59]
[null,null,null,null,null,null,null,null,null,null,"Sep",0.11,0.92,0.1,0.15]
[null,null,null,null,null,null,null,null,null,null,"Oct",7.0000000000000007E-2,0.32,7.0000000000000007E-2,0.1]
[null,null,null,null,null,null,null,null,null,null,"Nov",0.28999999999999998,2.12,0.28999999999999998,0.57999999999999996]
[null,null,null,null,null,null,null,null,null,null,"Dec",0.4,5.26,0.39,0.57999999999999996]
[null,null,null,null,null,null,null,null,null,null,"Annual",{"$f":"AVERAGE(L22:L33)","v":0.20000000000000004},{"$f":"MAX(M22:M33)","v":5.26},{"$f":"AVERAGE(N22:N33)","v":0.19666666666666668},{"$f":"MAX(O22:O33)","v":0.59}]
[]
[]
[]
[]
[]
[]
[]
[]
[]
[]
[]
[]
[]
["Comments :"]
["The reported data is from Q3 and Q4 - after plant hand-over from EPC contractor CNIM to Wheelabrator on 16th July 2020.  Reports prior to this were submitted as part of the Q2 returns."]

{"sheet":"Particulates","index":18,"n_rows":49,"n_cols":17,"rows_kept":49,"cut":false,"hidden":false,"merged":[[3,16,7,18],[9,16,11,18],[12,16,15,18],[66,9,78,9],[4,1,4,3],[4,4,4,6],[4,9,4,14],[6,9,18,9],[21,9,33,9],[36,9,48,9],[47,0,47,6],[48,0,51,6],[51,9,63,9]]}
[{"$f":"+'Cover Page'!$B$29","v":"Annual Performance Report 2020"},null,null,null,{"$f":"+'Cover Page'!$B$33","v":"Kemsley Generating Station"}]
[]
["Monitoring of Particulate matter emissions",null,null,"Whole Installation",null,null,"See  Notes in Cell Q3",null,null,{"$f":"+A3","v":"Monitoring of Particulate matter emissions"},null,null,null,"Per Combustion Line",null,null,"Notes:"]
[null,null,null,null,null,null,null,null,null,null,null,null,null,null,null,null,"User to add logic to complete Whole installation, Table A5:G18. From the data in Per Combustion Line, Table J6:O79, subject to No. of lines installed"]
["mg/Nm3","1/2 Hourly Reference Periods",null,null,"Daily Reference Periods"]
[{"$f":"+'Cover Page'!C39","v":2020},"1/2 hourly PM ELV","Monthly 1/2 hourly mean","Highest 1/2 hourly maximum","Daily PM ELV","Monthly daily mean","Highest daily maximum",null,null,{"$f":"+A6","v":2020},"mg/Nm3","Monthly 1/2 hourly mean","Monthly 1/2 hourly maximum","Monthly daily mean","Monthly daily maximum"]
["Jan",30,null,null,10,null,null,null,null,"A1","Jan"]
["Feb",30,null,null,10,null,null,null,null,null,"Feb"]
["Mar",30,null,null,10,null,null,null,null,null,"Mar",null,null,null,null,null,"Whole Installation table A5:G18:"]
["Apr",30,null,null,10,null,null,null,null,null,"Apr",null,null,null,null,null,"Mean: for 1/2 hourly and daily periods calculate mean of values across all operational combustion lines for the month"]
["May",30,null,null,10,null,null,null,null,null,"May"]
["Jun",30,null,null,10,null,null,null,null,null,"Jun"]
["Jul",30,0.13,0.25,10,0.13,0.23,null,null,null,"Jul",7.0000000000000007E-2,0.09,7.0000000000000007E-2,7.0000000000000007E-2,null,"Maximum: for 1/2 hourly and daily periods use the highest value across all operational combustion lines for the month"]
["Aug",30,0.1,0.25,10,0.1,0.23,null,null,null,"Aug",7.0000000000000007E-2,0.11,7.0000000000000007E-2,7.0000000000000007E-2]
["Sep",30,0.09,0.24,10,0.09,0.16,null,null,null,"Sep",7.0000000000000007E-2,0.09,7.0000000000000007E-2,7.0000000000000007E-2]
["Oct",30,0.09,0.19,10,0.09,0.12,null,null,null,"Oct",7.0000000000000007E-2,0.13,7.0000000000000007E-2,0.08]
["Nov",30,0.09,0.14000000000000001,10,0.09,0.12,null,null,null,"Nov",7.0000000000000007E-2,0.08,7.0000000000000007E-2,0.08]
["Dec",30,0.1,0.18,10,0.1,0.13,null,null,null,"Dec",0.08,0.14000000000000001,0.08,0.08]
[null,null,null,null,null,null,null,null,null,null,"Annual",{"$f":"AVERAGE(L7:L18)","v":7.166666666666667E-2},{"$f":"MAX(M7:M18)","v":0.14000000000000001},{"$f":"AVERAGE(N7:N18)","v":7.166666666666667E-2},{"$f":"MAX(O7:O18)","v":0.08}]
[]
[null,null,null,null,null,null,null,null,null,{"$f":"+A6","v":2020},"mg/Nm3","Monthly 1/2 hourly mean","Monthly 1/2 hourly maximum","Monthly daily mean","Monthly daily maximum"]
[null,null,null,null,null,null,null,null,null,"A2","Jan"]
[null,null,null,null,null,null,null,null,null,null,"Feb"]
[null,null,null,null,null,null,null,null,null,null,"Mar"]
[null,null,null,null,null,null,null,null,null,null,"Apr"]
[null,null,null,null,null,null,null,null,null,null,"May"]
[null,null,null,null,null,null,null,null,null,null,"Jun"]
[null,null,null,null,null,null,null,null,null,null,"Jul",0.2,0.25,0.2,0.23]
[null,null,null,null,null,null,null,null,null,null,"Aug",0.12,0.25,0.12,0.23]
[null,null,null,null,null,null,null,null,null,null,"Sep",0.12,0.24,0.12,0.16]
[null,null,null,null,null,null,null,null,null,null,"Oct",0.12,0.19,0.12,0.12]
[null,null,null,null,null,null,null,null,null,null,"Nov",0.12,0.14000000000000001,0.12,0.12]
[null,null,null,null,null,null,null,null,null,null,"Dec",0.12,0.18,0.12,0.13]
[null,null,null,null,null,null,null,null,null,null,"Annual",{"$f":"AVERAGE(L22:L33)","v":0.13333333333333333},{"$f":"MAX(M22:M33)","v":0.25},{"$f":"AVERAGE(N22:N33)","v":0.13333333333333333},{"$f":"MAX(O22:O33)","v":0.23}]
[]
[]
[]
[]
[]
[]
[]
[]
[]
[]
[]
[]
[]
["Comments :"]
["The reported data is from Q3 and Q4 - after plant hand-over from EPC contractor CNIM to Wheelabrator on 16th July 2020.  Reports prior to this were submitted as part of the Q2 returns."]

{"sheet":"CO 0.5hourly","index":19,"n_rows":49,"n_cols":17,"rows_kept":49,"cut":false,"hidden":false,"merged":[[3,16,7,18],[9,16,11,18],[12,16,15,18],[66,9,78,9],[4,1,4,3],[4,4,4,6],[4,9,4,14],[6,9,18,9],[21,9,33,9],[36,9,48,9],[47,0,47,6],[48,0,51,6],[51,9,63,9]]}
[{"$f":"+'Cover Page'!$B$29","v":"Annual Performance Report 2020"},null,null,null,{"$f":"+'Cover Page'!$B$33","v":"Kemsley Generating Station"}]
[]
["Monitoring of Carbon Monoxide (half hourly)",null,null,"Whole Installation",null,null,"See  Notes in Cell Q3",null,null,{"$f":"+A3","v":"Monitoring of Carbon Monoxide (half hourly)"},null,null,null,"Per Combustion Line",null,null,"Notes:"]
[null,null,null,null,null,null,null,null,null,null,null,null,null,null,null,null,"User to add logic to complete Whole installation, Table A5:G18. From the data in Per Combustion Line, Table J6:O79, subject to No. of lines installed"]
["mg/Nm3","1/2 Hourly Reference Periods",null,null,"Daily Reference Periods"]
[{"$f":"+'Cover Page'!C39","v":2020},"1/2 hourly CO ELV","Monthly 1/2 hourly mean","Highest 1/2 hourly maximum","Daily CO ELV","Monthly daily mean","Highest daily maximum",null,null,{"$f":"+A6","v":2020},"mg/Nm3","Monthly 1/2 hourly mean","Monthly 1/2 hourly maximum","Monthly daily mean","Monthly daily maximum"]
["Jan",100,null,null,50,null,null,null,null,"A1","Jan"]
["Feb",{"$f":"+B7","v":100},null,null,{"$f":"+E7","v":50},null,null,null,null,null,"Feb"]
["Mar",{"$f":"+B8","v":100},null,null,{"$f":"+E8","v":50},null,null,null,null,null,"Mar",null,null,null,null,null,"Whole Installation table A5:G18:"]
["Apr",100,null,null,50,null,null,null,null,null,"Apr",null,null,null,null,null,"Mean: for 1/2 hourly and daily periods calculate mean of values across all operational combustion lines for the month"]
["May",100,null,null,50,null,null,null,null,null,"May"]
["Jun",100,null,null,50,null,null,null,null,null,"Jun"]
["Jul",100,4.66,151.80000000000001,50,4.6500000000000004,7.2,null,null,null,"Jul",4.59,85.72,4.5599999999999996,5.8,null,"Maximum: for 1/2 hourly and daily periods use the highest value across all operational combustion lines for the month"]
["Aug",100,4.8099999999999996,462.81,50,4.7699999999999996,13.46,null,null,null,"Aug",4.78,462.81,4.7300000000000004,13.46]
["Sep",100,4.8,176.87,50,4.6399999999999997,5.76,null,null,null,"Sep",4.8600000000000003,176.87,4.6900000000000004,5.75]
["Oct",100,4.6500000000000004,209.26,50,4.6399999999999997,9.9499999999999993,null,null,null,"Oct",4.45,57.76,4.42,6.14]
["Nov",100,4.8899999999999997,176.56,50,4.8899999999999997,11.4,null,null,null,"Nov",4.8899999999999997,42.71,4.8899999999999997,6.27]
["Dec",100,5.19,397.52,50,5,16,null,null,null,"Dec",4.72,46.96,4.72,5.56]
[null,null,null,null,null,null,null,null,null,null,"Annual",{"$f":"AVERAGE(L7:L18)","v":4.7149999999999999},{"$f":"MAX(M7:M18)","v":462.81},{"$f":"AVERAGE(N7:N18)","v":4.668333333333333},{"$f":"MAX(O7:O18)","v":13.46}]
[]
[null,null,null,null,null,null,null,null,null,{"$f":"+A6","v":2020},"mg/Nm3","Monthly 1/2 hourly mean","Monthly 1/2 hourly maximum","Monthly daily mean","Monthly daily maximum"]
[null,null,null,null,null,null,null,null,null,"A2","Jan"]
[null,null,null,null,null,null,null,null,null,null,"Feb"]
[null,null,null,null,null,null,null,null,null,null,"Mar"]
[null,null,null,null,null,null,null,null,null,null,"Apr"]
[null,null,null,null,null,null,null,null,null,null,"May"]
[null,null,null,null,null,null,null,null,null,null,"Jun"]
[null,null,null,null,null,null,null,null,null,null,"Jul",4.74,151.80000000000001,4.74,7.2]
[null,null,null,null,null,null,null,null,null,null,"Aug",4.83,117.82,4.8099999999999996,7.05]
[null,null,null,null,null,null,null,null,null,null,"Sep",4.74,55.75,4.5999999999999996,5.76]
[null,null,null,null,null,null,null,null,null,null,"Oct",4.84,209.26,4.84,9.9499999999999993]
[null,null,null,null,null,null,null,null,null,null,"Nov",4.9000000000000004,176.56,4.9000000000000004,11.4]
[null,null,null,null,null,null,null,null,null,null,"Dec",5.68,397.52,5.3,16]
[null,null,null,null,null,null,null,null,null,null,"Annual",{"$f":"AVERAGE(L22:L33)","v":4.9549999999999992},{"$f":"MAX(M22:M33)","v":397.52},{"$f":"AVERAGE(N22:N33)","v":4.8650000000000002},{"$f":"MAX(O22:O33)","v":16}]
[]
[]
[]
[]
[]
[]
[]
[]
[]
[]
[]
[]
[]
["Comments :"]
["The reported data is from Q3 and Q4 - after plant hand-over from EPC contractor CNIM to Wheelabrator on 16th July 2020.  Reports prior to this were submitted as part of the Q2 returns."]

{"sheet":"CO 95% 10 min","index":20,"n_rows":49,"n_cols":19,"rows_kept":49,"cut":false,"hidden":false,"merged":[[3,18,7,20],[9,18,11,20],[12,18,15,20],[66,10,78,10],[4,1,4,4],[4,5,4,7],[4,10,4,16],[6,10,18,10],[21,10,33,10],[36,10,48,10],[47,0,47,7],[48,0,51,7],[51,10,63,10]]}
[{"$f":"+'Cover Page'!$B$29","v":"Annual Performance Report 2020"},null,null,null,{"$f":"+'Cover Page'!$B$33","v":"Kemsley Generating Station"}]
[]
["Monitoring of Carbon Monoxide (10-minute avg)",null,null,null,"Whole Installation",null,null,"See  Notes in Cell S3",null,{"$f":"+A3","v":"Monitoring of Carbon Monoxide (10-minute avg)"},null,null,null,null,"Per Combustion Line",null,"Notes:",null,"Notes:"]
[null,null,null,null,null,null,null,null,null,null,null,null,null,null,null,null,null,null,"User to add logic to complete Whole installation, Table A5:H18. From the data in Per Combustion Line, Table K6:Q79, subject to No. of lines installed"]
["mg/Nm3","10-minute Reference Periods",null,null,null,"Daily Reference Periods"]
[{"$f":"+'Cover Page'!C39","v":2020},"95%ile 10-min avg CO ELV","95%ile 10-min avg maximum","Monthly CO 10-min avg mean","10-min avg maximum","Daily CO ELV","Monthly daily mean","Highest daily maximum",null,null,{"$f":"+A6","v":2020},"mg/Nm3","95%ile 10-min avg maximum","Monthly CO 10-min avg mean","10-min avg maximum","Monthly daily mean","Monthly daily maximum"]
["Jan",150,null,null,null,50,null,null,null,null,"A1","Jan"]
["Feb",{"$f":"+B7","v":150},null,null,null,{"$f":"+F7","v":50},null,null,null,null,null,"Feb"]
["Mar",{"$f":"+B8","v":150},null,null,null,{"$f":"+F8","v":50},null,null,null,null,null,"Mar",null,null,null,null,null,null,"Whole Installation table A5:H18:"]
["Apr",150,null,null,null,50,null,null,null,null,null,"Apr",null,null,null,null,null,null,"Mean: for 10-min and daily periods use average of all operational combustion lines."]
["May",150,null,null,null,50,null,null,null,null,null,"May"]
["Jun",150,null,null,null,50,null,null,null,null,null,"Jun"]
["Jul",150,7.2,4.67,445.96,50,4.6500000000000004,7.2,null,null,null,"Jul",6.83,4.59,267.79000000000002,4.5599999999999996,5.93,null,"Maximum: for 10-min and daily periods use the highest of all operational combustion lines in any month."]
["Aug",150,7.46,4.79,1347.22,50,4.75,13.46,null,null,null,"Aug",5.93,4.75,1347.22,4.7,13.46]
["Sep",150,10.73,4.8499999999999996,518.37,50,4.6399999999999997,5.78,null,null,null,"Sep",8.07,4.8600000000000003,518.37,4.6900000000000004,5.74]
["Oct",150,8.89,4.66,618.54999999999995,50,4.6500000000000004,9.9499999999999993,null,null,null,"Oct",8.89,4.4800000000000004,191.95,4.45,6.14]
["Nov",150,10.09,4.9000000000000004,521.41,50,4.9000000000000004,11.4,null,null,null,"Nov",9.73,4.8899999999999997,117.05,4.8899999999999997,6.27]
["Dec",150,22.4,5.19,1048.96,50,5.01,16,null,null,null,"Dec",7.28,4.72,131.27000000000001,4.72,5.56]
[null,null,null,null,null,null,null,null,null,null,null,"Annual",{"$f":"MAX(M7:M18)","v":9.73},{"$f":"AVERAGE(N7:N18)","v":4.7149999999999999},{"$f":"MAX(O7:O18)","v":1347.22},{"$f":"AVERAGE(P7:P18)","v":4.668333333333333},{"$f":"MAX(Q7:Q18)","v":13.46}]
[]
[null,null,null,null,null,null,null,null,null,null,{"$f":"+A6","v":2020},"mg/Nm3","95%ile 10-min avg maximum","Monthly CO 10-min avg mean","10-min avg maximum","Monthly daily mean","Monthly daily maximum"]
[null,null,null,null,null,null,null,null,null,null,"A2","Jan"]
[null,null,null,null,null,null,null,null,null,null,null,"Feb"]
[null,null,null,null,null,null,null,null,null,null,null,"Mar"]
[null,null,null,null,null,null,null,null,null,null,null,"Apr"]
[null,null,null,null,null,null,null,null,null,null,null,"May"]
[null,null,null,null,null,null,null,null,null,null,null,"Jun"]
[null,null,null,null,null,null,null,null,null,null,null,"Jul",7.2,4.74,445.96,4.74,7.2]
[null,null,null,null,null,null,null,null,null,null,null,"Aug",7.46,4.83,342.98,4.8099999999999996,7.06]
[null,null,null,null,null,null,null,null,null,null,null,"Sep",10.73,4.83,349.23,4.5999999999999996,5.78]
[null,null,null,null,null,null,null,null,null,null,null,"Oct",7.66,4.8499999999999996,618.54999999999995,4.84,9.9499999999999993]
[null,null,null,null,null,null,null,null,null,null,null,"Nov",10.09,4.91,521.41,4.91,11.4]
[null,null,null,null,null,null,null,null,null,null,null,"Dec",22.4,5.68,1048.96,5.32,16]
[null,null,null,null,null,null,null,null,null,null,null,"Annual",{"$f":"MAX(M22:M33)","v":22.4},{"$f":"AVERAGE(N22:N33)","v":4.9733333333333336},{"$f":"MAX(O22:O33)","v":1048.96},{"$f":"AVERAGE(P22:P33)","v":4.87},{"$f":"MAX(Q22:Q33)","v":16}]
[]
[null,null,null,null,null,null,null,null,null,null,{"$f":"+A6","v":2020},"mg/Nm3","95%ile 10-min avg maximum","Monthly CO 10-min avg mean","10-min avg maximum","Monthly daily mean","Monthly daily maximum"]
[null,null,null,null,null,null,null,null,null,null,"A3","Jan"]
[null,null,null,null,null,null,null,null,null,null,null,"Feb"]
[null,null,null,null,null,null,null,null,null,null,null,"Mar"]
[null,null,null,null,null,null,null,null,null,null,null,"Apr"]
[null,null,null,null,null,null,null,null,null,null,null,"May"]
[null,null,null,null,null,null,null,null,null,null,null,"Jun"]
[null,null,null,null,null,null,null,null,null,null,null,"Jul",7.2,4.74,445.96,4.74,7.2]
[null,null,null,null,null,null,null,null,null,null,null,"Aug",7.46,4.83,342.98,4.8099999999999996,7.06]
[null,null,null,null,null,null,null,null,null,null,null,"Sep",10.73,4.83,349.23,4.5999999999999996,5.78]
[null,null,null,null,null,null,null,null,null,null,null,"Oct",7.66,4.8499999999999996,618.54999999999995,4.84,9.9499999999999993]
[null,null,null,null,null,null,null,null,null,null,null,"Nov",10.09,4.91,521.41,4.91,11.4]
["Comments :",null,null,null,null,null,null,null,null,null,null,"Dec",22.4,5.68,1048.96,5.32,16]
["Environment Agency explanatory note: The 10-minute average ELV is based on the “95th percentile”. In this case this means that 95% of the 10 minute averages in the relevant 24-hour period (i.e. 137) must be below 150 mg/Nm3, and 5% (i.e. 7) are allowed to be any value above 150 mg/Nm3. Whilst we expect operators to minimise CO emissions at all times, it is perfectly acceptable for the value of the maximum 10-minute average to be above 150 mg/Nm3, provided the 95th percentile ELV has been met for that period. ",null,null,null,null,null,null,null,null,null,null,"Annual",{"$f":"AVERAGE(M37:M48)","v":10.923333333333332},null,{"$f":"MAX(O37:O48)","v":1048.96},{"$f":"AVERAGE(P37:P48)","v":4.87},{"$f":"MAX(Q37:Q48)","v":16}]

{"sheet":"NH3","index":21,"n_rows":49,"n_cols":17,"rows_kept":49,"cut":false,"hidden":false,"merged":[[3,16,7,18],[9,16,11,18],[12,16,15,18],[66,9,78,9],[4,1,4,3],[4,4,4,6],[4,9,4,14],[6,9,18,9],[21,9,33,9],[36,9,48,9],[47,0,47,6],[48,0,51,6],[51,9,63,9]]}
[{"$f":"+'Cover Page'!$B$29","v":"Annual Performance Report 2020"},null,null,null,{"$f":"+'Cover Page'!$B$33","v":"Kemsley Generating Station"}]
[]
["Monitoring of Ammnonia emissions ",null,null,"Whole Installation",null,null,"See  Notes in Cell Q3",null,null,{"$f":"+A3","v":"Monitoring of Ammnonia emissions "},null,null,null,"Per Combustion Line",null,null,"Notes:"]
[null,null,null,null,null,null,null,null,null,null,null,null,null,null,null,null,"User to add logic to complete Whole installation, Table A5:G18. From the data in Per Combustion Line, Table J6:O79, subject to No. of lines installed"]
["mg/Nm3","1/2 Hourly Reference Periods",null,null,"Daily Reference Periods"]
[{"$f":"+'Cover Page'!C39","v":2020},"1/2 hourly NH3 ELV","Monthly 1/2 hourly mean","Highest 1/2 hourly maximum","Daily NH3 ELV","Monthly daily mean","Highest daily maximum",null,null,{"$f":"+A6","v":2020},"mg/Nm3","Monthly 1/2 hourly mean","Monthly 1/2 hourly maximum","Monthly daily mean","Monthly daily maximum"]
["Jan",0,null,null,10,null,null,null,null,"A1","Jan"]
["Feb",{"$f":"+B7","v":0},null,null,{"$f":"+E7","v":10},null,null,null,null,null,"Feb"]
["Mar",{"$f":"+B8","v":0},null,null,{"$f":"+E8","v":10},null,null,null,null,null,"Mar",null,null,null,null,null,"Whole Installation table A5:G18:"]
["Apr",0,null,null,10,null,null,null,null,null,"Apr",null,null,null,null,null,"Mean: for 1/2 hourly and daily periods calculate mean of values across all operational combustion lines for the month"]
["May",0,null,null,10,null,null,null,null,null,"May"]
["Jun",0,null,null,10,null,null,null,null,null,"Jun"]
["Jul",0,0.24,3.39,10,0.23,0.69,null,null,null,"Jul",0.26,3.39,0.25,0.69,null,"Maximum: for 1/2 hourly and daily periods use the highest value across all operational combustion lines for the month"]
["Aug",0,0.41,2.71,10,0.41,0.93,null,null,null,"Aug",0.4,2.4700000000000002,0.4,0.93]
["Sep",0,0.64,4.0199999999999996,10,0.59,1.1000000000000001,null,null,null,"Sep",0.66,4.0199999999999996,0.62,1.1000000000000001]
["Oct",0,0.77,4.55,10,0.77,2.2599999999999998,null,null,null,"Oct",0.74,3.43,0.73,1.48]
["Nov",0,0.68,4.1100000000000003,10,0.68,1.64,null,null,null,"Nov",0.87,4.1100000000000003,0.87,1.64]
["Dec",0,0.69,4.6100000000000003,10,0.7,1.9,null,null,null,"Dec",0.98,4.22,0.98,1.9]
[null,null,null,null,null,null,null,null,null,null,"Annual",{"$f":"AVERAGE(L7:L18)","v":0.65166666666666673},{"$f":"MAX(M7:M18)","v":4.22},{"$f":"AVERAGE(N7:N18)","v":0.64166666666666672},{"$f":"MAX(O7:O18)","v":1.9}]
[]
[null,null,null,null,null,null,null,null,null,{"$f":"+A6","v":2020},"mg/Nm3","Monthly 1/2 hourly mean","Monthly 1/2 hourly maximum","Monthly daily mean","Monthly daily maximum"]
[null,null,null,null,null,null,null,null,null,"A2","Jan"]
[null,null,null,null,null,null,null,null,null,null,"Feb"]
[null,null,null,null,null,null,null,null,null,null,"Mar"]
[null,null,null,null,null,null,null,null,null,null,"Apr"]
[null,null,null,null,null,null,null,null,null,null,"May"]
[null,null,null,null,null,null,null,null,null,null,"Jun"]
[null,null,null,null,null,null,null,null,null,null,"Jul",0.21,1.05,0.2,0.47]
[null,null,null,null,null,null,null,null,null,null,"Aug",0.41,2.71,0.42,0.86]
[null,null,null,null,null,null,null,null,null,null,"Sep",0.61,3.99,0.56000000000000005,1.0900000000000001]
[null,null,null,null,null,null,null,null,null,null,"Oct",0.81,4.55,0.81,2.2599999999999998]
[null,null,null,null,null,null,null,null,null,null,"Nov",0.49,1.5,0.49,0.8]
[null,null,null,null,null,null,null,null,null,null,"Dec",0.38,4.6100000000000003,0.39,0.89]
[null,null,null,null,null,null,null,null,null,null,"Annual",{"$f":"AVERAGE(L22:L33)","v":0.48500000000000004},{"$f":"MAX(M22:M33)","v":4.6100000000000003},{"$f":"AVERAGE(N22:N33)","v":0.47833333333333344},{"$f":"MAX(O22:O33)","v":2.2599999999999998}]
[]
[]
[]
[]
[]
[]
[]
[]
[]
[]
[]
[]
[]
["Comments :"]
["An indicated ELV value of zero in the table above means that no ammonia limit is set in the permit. \nThe reported data is from Q3 and Q4 - after plant hand-over from EPC contractor CNIM to Wheelabrator on 16th July 2020.  Reports prior to this were submitted as part of the Q2 returns.\n\n"]